{"text_format":"1","workbook":"xlsx","n_sheets":6,"sheets":["PF-OSPR A B","PF-OSPR C","PF-OSPR C D","PF-OSPR E F","PF-OSPR G H","slowniki"],"not_rendered":{"charts":0,"images":0,"macros":1,"external_links":0,"defined_names":4,"comments":0,"pivot_tables":0},"unopened":[],"bounds":{"document_bytes":16777216,"sheet_cells":100000,"rows_first":2000,"rows_last":500,"rows_between":2000,"halvings":0,"cell_chars":16384,"cell_head_chars":4096},"cells_cut":0,"cells_raw":0,"read":"whole","date_system":"1900"}

{"sheet":"PF-OSPR A B","index":0,"n_rows":412,"n_cols":16,"rows_kept":412,"cut":false,"hidden":false,"merged":[[13,9,13,11],[7,9,9,11],[274,5,274,11],[18,0,18,11],[26,5,26,11],[22,1,26,1],[22,2,26,2],[22,3,26,3],[22,4,26,4],[20,0,20,11],[271,0,271,11],[251,0,251,9]]}
[2027]
[]
[null,null,null,null,null,null,null,null,null,null,null,null,null,null,"- na inwestycje i zakupy inwestycyjne 19)"]
[null,null,null,null,null,null,null,null,null,null,null,null,null,null,"- na inwestycje i zakupy inwestycyjne, w tym: 19):"]
[]
[null,null,null,null,null,null,null,null,null,null,null,"PF-OSPR",null,null,"ŚRODKI NA WYDATKI MAJĄTKOWE\n(nakłady na rzeczowe aktywa trwałe i wartości niematerialne i prawne) 20)"]
["Część",null,null,"……….",{"$f":"IF(D7=\"\",\"<- Proszę uzupełnić dane dot. części budżetowej\",\"\")","v":""},null,null,null,null,null,null,null,null,null,"ŚRODKI NA WYDATKI MAJĄTKOWE, w tym:\n(nakłady na rzeczowe aktywa trwałe i wartości niematerialne i prawne) 20)"]
[null,null,null,"(nr, nazwa)",null,null,null,null,null,"Przed wypełnieniem formularza należy zapoznać \t\t\nsię ze szczegółowym sposobem opracowywania \t\t\nmateriałów do projektu ustawy budżetowej \t\t\nzawartym w załączniku nr 42.\t"]
["Dział",null,null,"……….",{"$f":"IF(D9=\"\",\"<- Proszę uzupełnić dane dot. działu\",\"\")","v":""},null,null,null,null,null,null,null,null,null,"dotacje na inwestycje i zakupy inwestycyjne"]
[null,null,null,"(nr, nazwa)",null,null,null,null,null,null,null,null,null,null,"dotacje na inwestycje i zakupy inwestycyjne, w tym: 16)"]
["Rozdział",null,null,"……….",{"$f":"IF(D11=\"\",\"<- Proszę uzupełnić dane dot. rozdziału\",\"\")","v":""},null,null,null,null,null,null,null,null,null,"Środki pieniężne 4)"]
[null,null,null,"(nr, nazwa)",null,null,null,null,null,null,null,null,null,null,"Środki pieniężne 4), w tym: "]
["Jednostka"]
[null,null,null,"(nazwa Jednostki)",null,null,null,null,null,"Agencje wykonawcze"]
[null,null,null,null,null,null,null,null,null,"(proszę wybrać z listy typ Jednostki)"]
[]
[]
[]
["\nPROJEKT PLANU FINANSOWEGO AGENCJI WYKONAWCZEJ, INSTYTUCJI GOSPODARKI BUDŻETOWEJ ORAZ NIEKTÓRYCH OSÓB PRAWNYCH ZALICZANYCH DO SEKTORA FINANSÓW PUBLICZNYCH Z DODATKOWYMI INFORMACJAMI UZUPEŁNIAJĄCYMI "]
[]
["Część A  Plan finansowy w układzie memoriałowym"]
[]
[null,"CHAPTER_CODE","UATTRIBUTE01","Wyszczególnienie","Paragraf 1)","Wstępne wykonanie","Ustawa","Przewidywane ","Projekt","Projekt","Projekt","Projekt"]
[null,null,null,null,null," / wykonanie*)","budżetowa","wykonanie","planu ","planu ","planu ","planu "]
["Lp.",null,null,null,null," ……. r.","na ……... r. 2)","w ………. r.","na ……….. r.","na ………... r.","na ……….. r.","na …….. r."]
[null,null,null,null,null,"(rok n-2)","(rok n-1)","(rok n-1)","(rok n)","(rok n+1)","(rok n+2)","(rok n+3)"]
[null,null,null,null,null,"w tysiącach złotych"]
[1,null,null,2,3,4,5,6,7,8,9,10]
["I","PFOSPR.A1_1","PFOSPR.A1_1.I","STAN NA POCZĄTEK ROKU: ","x","x","x","x","x","x","x","x"]
[1,"PFOSPR.A1_1","PFOSPR.A1_1.I.1","Środki obrotowe, w tym: 3)","x"]
["1.1","PFOSPR.A1_1","PFOSPR.A1_1.I.1.1","Środki pieniężne 4)","x"]
["1.1.1","PFOSPR.POZ_A_I_1","PFOSPR.POZ_A_I_1"]
["1.1.2","PFOSPR.POZ_A_I_1","PFOSPR.POZ_A_I_1"]
["1.1.3","PFOSPR.POZ_A_I_1","PFOSPR.POZ_A_I_1"]
["1.1.4","PFOSPR.POZ_A_I_1","PFOSPR.POZ_A_I_1"]
["1.1.5","PFOSPR.POZ_A_I_1","PFOSPR.POZ_A_I_1"]
["1.2","PFOSPR.A1_2","PFOSPR.A1_1.I.1.2","Należności krótkoterminowe:5)","x"]
["1.2.1","PFOSPR.A1_2","PFOSPR.A1_1.I.1.2.1","z tytułu udzielonych pożyczek","x"]
["1.2.2","PFOSPR.A1_2","PFOSPR.A1_1.I.1.2.2","od jednostek sektora finansów publicznych","x"]
["1.3","PFOSPR.A1_2","PFOSPR.A1_1.I.1.3","Zapasy","x"]
[2,"PFOSPR.A1_2","PFOSPR.A1_1.I.2","Należności długoterminowe: 5)","x"]
["2.1","PFOSPR.A1_2","PFOSPR.A1_1.I.2.1","z tytułu udzielonych pożyczek","x"]
["2.2","PFOSPR.A1_2","PFOSPR.A1_1.I.2.2","od jednostek sektora finansów publicznych","x"]
[3,"PFOSPR.A1_2","PFOSPR.A1_1.I.3","Zobowiązania: 6)","x"]
["3.1","PFOSPR.A1_2","PFOSPR.A1_1.I.3.1","z tytułu zaciągniętych pożyczek i kredytów","x"]
["3.2","PFOSPR.A1_2","PFOSPR.A1_1.I.3.2","wymagalne","x"]
["4","PFOSPR.A1_2","PFOSPR.A1_1.I.4","Ulokowane środki finansowe Funduszu Rezerwy Demograficznej","x"]
["II","PFOSPR.A2_1","PFOSPR.A2_1.II","PRZYCHODY OGÓŁEM","x",{"$f":"SUM(F49,F73,F74,F75,F76)","v":0},0,0,0,0,0,0]
[1,"PFOSPR.A2_1","PFOSPR.A2_1.II.1","Przychody z prowadzonej działalności, z tego:","x"]
["1.1","PFOSPR.A2_1","PFOSPR.A2_1.II.1.1","Przychody netto ze sprzedaży produktów sprzedanych NFZ 7)","x"]
["1.2","PFOSPR.A2_1","PFOSPR.A2_1.II.1.2","Przychody z tytułu składek na ubezpieczenie zdrowotne 8)","x"]
["1.3","PFOSPR.POZ_A_II_1","PFOSPR.POZ_A_II_1",null,"x"]
["1.3.1","PFOSPR.POZ_A_II_1","PFOSPR.POZ_A_II_1",null,"x"]
["1.3.2","PFOSPR.POZ_A_II_1","PFOSPR.POZ_A_II_1",null,"x"]
["1.3.3","PFOSPR.POZ_A_II_1","PFOSPR.POZ_A_II_1",null,"x"]
["1.3.4","PFOSPR.POZ_A_II_1","PFOSPR.POZ_A_II_1",null,"x"]
["1.3.5","PFOSPR.POZ_A_II_1","PFOSPR.POZ_A_II_1",null,"x"]
["1.3.6","PFOSPR.POZ_A_II_1","PFOSPR.POZ_A_II_1",null,"x"]
["1.3.7","PFOSPR.POZ_A_II_1","PFOSPR.POZ_A_II_1",null,"x"]
["1.3.8","PFOSPR.POZ_A_II_1","PFOSPR.POZ_A_II_1",null,"x"]
["1.3.9","PFOSPR.POZ_A_II_1","PFOSPR.POZ_A_II_1",null,"x"]
["1.3.10","PFOSPR.POZ_A_II_1","PFOSPR.POZ_A_II_1",null,"x"]
["1.3.11","PFOSPR.POZ_A_II_1","PFOSPR.POZ_A_II_1",null,"x"]
["1.3.12","PFOSPR.POZ_A_II_1","PFOSPR.POZ_A_II_1",null,"x"]
["1.4","PFOSPR.POZ_A_II_1","PFOSPR.POZ_A_II_1",null,"x"]
["1.5","PFOSPR.POZ_A_II_1","PFOSPR.POZ_A_II_1",null,"x"]
["1.6","PFOSPR.POZ_A_II_1","PFOSPR.POZ_A_II_1",null,"x"]
["1.7","PFOSPR.POZ_A_II_1","PFOSPR.POZ_A_II_1",null,"x"]
["1.8","PFOSPR.POZ_A_II_1","PFOSPR.POZ_A_II_1",null,"x"]
["1.9","PFOSPR.POZ_A_II_1","PFOSPR.POZ_A_II_1",null,"x"]
["1.10","PFOSPR.POZ_A_II_1","PFOSPR.POZ_A_II_1",null,"x"]
["1.11","PFOSPR.POZ_A_II_1","PFOSPR.POZ_A_II_1",null,"x"]
[2,"PFOSPR.A2_2","PFOSPR.A2_2.II.2","Dotacje i subwencje z budżetu państwa","x"]
[3,"PFOSPR.A2_2","PFOSPR.A2_2.II.3","Środki otrzymane z Unii Europejskiej 9)","x"]
[4,"PFOSPR.A2_2","PFOSPR.A2_2.II.4","Środki od innych jednostek sektora finansów publicznych","x"]
[5,"PFOSPR.A2_2","PFOSPR.A2_2.II.5","Pozostałe przychody, w tym:","x"]
["5.1","PFOSPR.A2_2","PFOSPR.A2_2.II.5.1","Odsetki (np. z tytułu udzielonych pożyczek), w tym:","x"]
["5.1.1","PFOSPR.A2_2","PFOSPR.A2_2.II.5.1.1"," od depozytów u Ministra Finansów lub z tytułu skarbowych papierów wartościowych","x"]
["5.2","PFOSPR.A2_2","PFOSPR.A2_2.II.5.2","Środki otrzymane od  jednostek spoza sektora finansów publicznych 10)","x"]
["5.2.1","PFOSPR.POZ_A_II_2","PFOSPR.POZ_A_II_2",null,"x"]
["5.2.2","PFOSPR.POZ_A_II_2","PFOSPR.POZ_A_II_2",null,"x"]
["5.2.3","PFOSPR.POZ_A_II_2","PFOSPR.POZ_A_II_2",null,"x"]
["5.2.4","PFOSPR.POZ_A_II_2","PFOSPR.POZ_A_II_2",null,"x"]
["5.2.5","PFOSPR.POZ_A_II_2","PFOSPR.POZ_A_II_2",null,"x"]
["5.3","PFOSPR.A2_2B","PFOSPR.A2_2B.II.5.3","Równowartość odpisów amortyzacyjnych 11)","x"]
["5.4","PFOSPR.POZ_A_II_5","PFOSPR.POZ_A_II_5",null,"x"]
["5.4.1","PFOSPR.POZ_A_II_5","PFOSPR.POZ_A_II_5",null,"x"]
["5.4.2","PFOSPR.POZ_A_II_5","PFOSPR.POZ_A_II_5",null,"x"]
["5.4.3","PFOSPR.POZ_A_II_5","PFOSPR.POZ_A_II_5",null,"x"]
["5.5","PFOSPR.POZ_A_II_5","PFOSPR.POZ_A_II_5",null,"x"]
["5.6","PFOSPR.POZ_A_II_5","PFOSPR.POZ_A_II_5",null,"x"]
["5.7","PFOSPR.POZ_A_II_5","PFOSPR.POZ_A_II_5",null,"x"]
["5.8","PFOSPR.POZ_A_II_5","PFOSPR.POZ_A_II_5",null,"x"]
["5.9","PFOSPR.POZ_A_II_5","PFOSPR.POZ_A_II_5",null,"x"]
["5.10","PFOSPR.POZ_A_II_5","PFOSPR.POZ_A_II_5",null,"x"]
["5.11","PFOSPR.POZ_A_II_5","PFOSPR.POZ_A_II_5",null,"x"]
["5.12","PFOSPR.POZ_A_II_5","PFOSPR.POZ_A_II_5",null,"x"]
["III","PFOSPR.A3_1","PFOSPR.A3_1.III","KOSZTY OGÓŁEM","x",{"$f":"SUM(F99,F130,F162)","v":0},0,0,0,0,0,0]
[1,"PFOSPR.A3_1","PFOSPR.A3_1.III.1","Koszty funkcjonowania","x",{"$f":"SUM(F100,F101,F102,F103,F109,F110,F111,F117,F118,F129)","v":0},{"$f":"SUM(G100,G101,G102,G103,G109,G110,G111,G117,G118,G129)","v":0},{"$f":"SUM(H100,H101,H102,H103,H109,H110,H111,H117,H118,H129)","v":0},0,0,0,0]
["1.1","PFOSPR.A3_1","PFOSPR.A3_1.III.1.1","Amortyzacja","x"]
["1.2","PFOSPR.A3_1","PFOSPR.A3_1.III.1.2","Materiały i energia","x"]
["1.3","PFOSPR.A3_1","PFOSPR.A3_1.III.1.3","Usługi obce","x"]
["1.4","PFOSPR.A3_1","PFOSPR.A3_1.III.1.4","Wynagrodzenia i uposażenia, z tego:","x",{"$f":"SUM(F104:F108)","v":0},{"$f":"SUM(G104:G108)","v":0},0,0,0,0,0]
["1.4.1","PFOSPR.A3_1","PFOSPR.A3_1.III.1.4.1"," wynagrodzenia osobowe ","x"]
["1.4.2","PFOSPR.A3_1","PFOSPR.A3_1.III.1.4.2"," wynagrodzenia bezosobowe 12)","x"]
["1.4.3","PFOSPR.A3_1","PFOSPR.A3_1.III.1.4.3"," uposażenia ","x"]
["1.4.4","PFOSPR.A3_1","PFOSPR.A3_1.III.1.4.4","należności żołnierzy zawodowych i funkcjonariuszy o charakterze wynagrodzeniowym ","x"]
["1.4.5","PFOSPR.A3_1","PFOSPR.A3_1.III.1.4.5"," pozostałe ","x"]
["1.5","PFOSPR.A3_1","PFOSPR.A3_1.III.1.5","Świadczenia na rzecz osób fizycznych","x"]
["1.6","PFOSPR.A3_1","PFOSPR.A3_1.III.1.6","Inne wydatki na rzecz osób fizycznych","x"]
["1.7","PFOSPR.A3_1","PFOSPR.A3_1.III.1.7","Składki, z tego na:","x",{"$f":"SUM(F112:F116)","v":0},0,0,0,0,0,0]
["1.7.1","PFOSPR.A3_1","PFOSPR.A3_1.III.1.7.1","ubezpieczenie społeczne","x"]
["1.7.2","PFOSPR.A3_1","PFOSPR.A3_1.III.1.7.2","Fundusz Pracy oraz Fundusz Solidarnościowy","x"]
["1.7.3","PFOSPR.A3_1","PFOSPR.A3_1.III.1.7.3","Fundusz Emerytur Pomostowych","x"]
["1.7.4","PFOSPR.A3_1","PFOSPR.A3_1.III.1.7.4","Wpłaty na pracownicze plany kapitałowe","x"]
["1.7.5","PFOSPR.A3_1","PFOSPR.A3_1.III.1.7.5","pozostałe","x"]
["1.8","PFOSPR.A3_1","PFOSPR.A3_1.III.1.8","Płatności odsetkowe wynikające z zaciągniętych zobowiązań","x"]
["1.9","PFOSPR.A3_1","PFOSPR.A3_1.III.1.9","Podatki i opłaty, w tym:","x"]
["1.9.1","PFOSPR.A3_1","PFOSPR.A3_1.III.1.9.1"," podatek akcyzowy","x"]
["1.9.2","PFOSPR.A3_1","PFOSPR.A3_1.III.1.9.2"," podatek od towarów i usług (VAT)","x"]
["1.9.3","PFOSPR.A3_1","PFOSPR.A3_1.III.1.9.3"," opłaty na rzecz budżetów jednostek samorządu terytorialnego","x"]
["1.9.4","PFOSPR.A3_1","PFOSPR.A3_1.III.1.9.4"," podatki stanowiące źródło dochodów własnych jednostek samorządu terytorialnego","x"]
["1.9.5","PFOSPR.A3_1","PFOSPR.A3_1.III.1.9.5"," opłaty na rzecz budżetu państwa","x"]
["1.9.6","PFOSPR.POZ_A_III_1","PFOSPR.POZ_A_III_1",null,"x"]
["1.9.7","PFOSPR.POZ_A_III_1","PFOSPR.POZ_A_III_1",null,"x"]
["1.9.8","PFOSPR.POZ_A_III_1","PFOSPR.POZ_A_III_1",null,"x"]
["1.9.9","PFOSPR.POZ_A_III_1","PFOSPR.POZ_A_III_1",null,"x"]
["1.9.10","PFOSPR.POZ_A_III_1","PFOSPR.POZ_A_III_1",null,"x"]
["1.10","PFOSPR.A3_2","PFOSPR.A3_2.III.1.10","Pozostałe koszty funkcjonowania ","x"]
[2,"PFOSPR.A3_2","PFOSPR.A3_2.III.2","Koszty realizacji zadań, w tym: ","x"]
["2.1","PFOSPR.A3_2","PFOSPR.A3_2.III.2.1"," - środki przekazane innym podmiotom 13)","x"]
["2.2","PFOSPR.POZ_A_III_2","PFOSPR.POZ_A_III_2",null,"x"]
["2.2.1","PFOSPR.POZ_A_III_2","PFOSPR.POZ_A_III_2",null,"x"]
["2.2.2","PFOSPR.POZ_A_III_2","PFOSPR.POZ_A_III_2",null,"x"]
["2.2.3","PFOSPR.POZ_A_III_2","PFOSPR.POZ_A_III_2",null,"x"]
["2.2.4","PFOSPR.POZ_A_III_2","PFOSPR.POZ_A_III_2",null,"x"]
["2.2.5","PFOSPR.POZ_A_III_2","PFOSPR.POZ_A_III_2",null,"x"]
["2.3","PFOSPR.POZ_A_III_2","PFOSPR.POZ_A_III_2",null,"x"]
["2.3.1","PFOSPR.POZ_A_III_2","PFOSPR.POZ_A_III_2",null,"x"]
["2.3.2","PFOSPR.POZ_A_III_2","PFOSPR.POZ_A_III_2",null,"x"]
["2.3.3","PFOSPR.POZ_A_III_2","PFOSPR.POZ_A_III_2",null,"x"]
["2.3.4","PFOSPR.POZ_A_III_2","PFOSPR.POZ_A_III_2",null,"x"]
["2.3.5","PFOSPR.POZ_A_III_2","PFOSPR.POZ_A_III_2",null,"x"]
["2.4","PFOSPR.POZ_A_III_2","PFOSPR.POZ_A_III_2",null,"x"]
["2.4.1","PFOSPR.POZ_A_III_2","PFOSPR.POZ_A_III_2",null,"x"]
["2.4.2","PFOSPR.POZ_A_III_2","PFOSPR.POZ_A_III_2",null,"x"]
["2.4.3","PFOSPR.POZ_A_III_2","PFOSPR.POZ_A_III_2",null,"x"]
["2.4.4","PFOSPR.POZ_A_III_2","PFOSPR.POZ_A_III_2",null,"x"]
["2.4.5","PFOSPR.POZ_A_III_2","PFOSPR.POZ_A_III_2",null,"x"]
["2.5","PFOSPR.POZ_A_III_2","PFOSPR.POZ_A_III_2",null,"x"]
["2.6","PFOSPR.POZ_A_III_2","PFOSPR.POZ_A_III_2",null,"x"]
["2.7","PFOSPR.POZ_A_III_2","PFOSPR.POZ_A_III_2",null,"x"]
["2.8","PFOSPR.POZ_A_III_2","PFOSPR.POZ_A_III_2",null,"x"]
["2.9","PFOSPR.POZ_A_III_2","PFOSPR.POZ_A_III_2",null,"x"]
["2.10","PFOSPR.POZ_A_III_2","PFOSPR.POZ_A_III_2",null,"x"]
["2.11","PFOSPR.POZ_A_III_2","PFOSPR.POZ_A_III_2",null,"x"]
["2.12","PFOSPR.POZ_A_III_2","PFOSPR.POZ_A_III_2",null,"x"]
["2.13","PFOSPR.POZ_A_III_2","PFOSPR.POZ_A_III_2",null,"x"]
["2.14","PFOSPR.POZ_A_III_2","PFOSPR.POZ_A_III_2",null,"x"]
["2.15","PFOSPR.POZ_A_III_2","PFOSPR.POZ_A_III_2",null,"x"]
["2.16","PFOSPR.POZ_A_III_2","PFOSPR.POZ_A_III_2",null,"x"]
[3,"PFOSPR.A3_3","PFOSPR.A3_3.III.3","Pozostałe koszty, w tym:","x"]
["3.1","PFOSPR.A3_3","PFOSPR.A3_3.III.3.1","Środki na wydatki majątkowe 13)\n(środki przekazane innym jednostkom na wydatki majątkowe)","x"]
["3.2","PFOSPR.POZ_A_III_3","PFOSPR.POZ_A_III_3",null,"x"]
["3.3","PFOSPR.POZ_A_III_3","PFOSPR.POZ_A_III_3",null,"x"]
["3.4","PFOSPR.POZ_A_III_3","PFOSPR.POZ_A_III_3",null,"x"]
["3.5","PFOSPR.POZ_A_III_3","PFOSPR.POZ_A_III_3",null,"x"]
["3.6","PFOSPR.POZ_A_III_3","PFOSPR.POZ_A_III_3",null,"x"]
["IV","PFOSPR.A4_1","PFOSPR.A4_1.IV","WYNIK BRUTTO (poz. II - III) 14) 15)","x",{"$f":"SUM(F48-F98)","v":0},0,0,0,0,0,0]
["V","PFOSPR.A4_1","PFOSPR.A4_1.V","OBOWIĄZKOWE OBCIĄŻENIA WYNIKU FINANSOWEGO","x"]
[1,"PFOSPR.A4_1","PFOSPR.A4_1.V.1","Podatek dochodowy od osób prawnych","x"]
[2,"PFOSPR.A4_1","PFOSPR.A4_1.V.2","Pozostałe obciążenia wyniku finansowego, w tym:","x"]
["2.1","PFOSPR.A4_1","PFOSPR.A4_1.V.2.1","Wpłata do budżetu państwa (np. z zysku, nadwyżki środków finansowych)","x"]
["2.2","PFOSPR.POZ_A_V_2","PFOSPR.POZ_A_V_2",null,"x"]
["2.3","PFOSPR.POZ_A_V_2","PFOSPR.POZ_A_V_2",null,"x"]
["2.4","PFOSPR.POZ_A_V_2","PFOSPR.POZ_A_V_2",null,"x"]
["2.5","PFOSPR.POZ_A_V_2","PFOSPR.POZ_A_V_2",null,"x"]
["VI","PFOSPR.A4_1B","PFOSPR.A4_1B.VI","WYNIK NETTO (poz. IV - V) 14) 15)","x",{"$f":"SUM(F169-F170)","v":0},{"$f":"SUM(G169-G170)","v":0},0,0,0,0,0]
["VII","PFOSPR.A7_1","PFOSPR.A7_1.VII","DOTACJE I SUBWENCJE Z BUDŻETU PAŃSTWA","x","x","x","x","x","x","x","x"]
[1,"PFOSPR.A7_1","PFOSPR.A7_1.VII.1","Dotacje i subwencje ogółem, z tego:","x",{"$f":"SUM(F181,F182,F183,F184,F186,F192,F193,F199,F188,F190)","v":0},0,0,0,0,0,0]
["1.1","PFOSPR.A7_1","PFOSPR.A7_1.VII.1.1","- podmiotowa","371, 373, 375, 379"]
["1.2","PFOSPR.A7_1","PFOSPR.A7_1.VII.1.2","- przedmiotowa",381]
["1.3","PFOSPR.A7_1","PFOSPR.A7_1.VII.1.3","- celowa","341, 343, 347, 348, 350  "]
["1.4","PFOSPR.A7_1","PFOSPR.A7_1.VII.1.4","- celowa na finansowanie projektów z udziałem środków UE 16) - bieżące","343, 365"]
["1.4.1","PFOSPR.A7_1","PFOSPR.A7_1.VII.1.4.1","   w tym: na współfinansowanie 17)"]
["1.5","PFOSPR.A7_1","PFOSPR.A7_1.VII.1.5","- celowa na finansowanie projektów z udziałem środków UE 16) - majątkowe",554]
["1.5.1","PFOSPR.A7_1","PFOSPR.A7_1.VII.1.5.1","   w tym: na współfinansowanie 17)"]
["1.6","PFOSPR.A7_1","PFOSPR.A7_1.VII.1.6","- celowa na finansowanie projektów z udziałem środków EFTA - bieżące",365]
["1.6.1","PFOSPR.A7_1","PFOSPR.A7_1.VII.1.6.1","   w tym: na współfinansowanie 18)","x"]
["1.7","PFOSPR.A7_1","PFOSPR.A7_1.VII.1.7","- celowa na finansowanie projektów z udziałem środków EFTA - majątkowe",554]
["1.7.1","PFOSPR.A7_1","PFOSPR.A7_1.VII.1.7.1","   w tym: na współfinansowanie 18)","x"]
["1.8","PFOSPR.A7_1","PFOSPR.A7_1.VII.1.8","- subwencje",432]
["1.9","PFOSPR.A7_1","PFOSPR.A7_1.VII.1.9","- na inwestycje i zakupy inwestycyjne","536, 538, 539, 541"]
["1.9.1","PFOSPR.POZ_A_VII_1","PFOSPR.POZ_A_VII_1"]
["1.9.2","PFOSPR.POZ_A_VII_1","PFOSPR.POZ_A_VII_1"]
["1.9.3","PFOSPR.POZ_A_VII_1","PFOSPR.POZ_A_VII_1"]
["1.9.4","PFOSPR.POZ_A_VII_1","PFOSPR.POZ_A_VII_1"]
["1.9.5","PFOSPR.POZ_A_VII_1","PFOSPR.POZ_A_VII_1"]
["1.10","PFOSPR.A7_1B","PFOSPR.A7_1B.VII.1.10","- na pierwsze wyposażenie w środki obrotowe"]
["VIII","PFOSPR.A8_1","PFOSPR.A8_1.VIII","ŚRODKI NA WYDATKI MAJĄTKOWE\n(nakłady na rzeczowe aktywa trwałe i wartości niematerialne i prawne) 20)","x"]
[1,"PFOSPR.POZ_A_VIII_1","PFOSPR.POZ_A_VIII_1"]
["1.1","PFOSPR.POZ_A_VIII_1","PFOSPR.POZ_A_VIII_1"]
["1.2","PFOSPR.POZ_A_VIII_1","PFOSPR.POZ_A_VIII_1"]
["1.3","PFOSPR.POZ_A_VIII_1","PFOSPR.POZ_A_VIII_1"]
["1.4","PFOSPR.POZ_A_VIII_1","PFOSPR.POZ_A_VIII_1"]
["2","PFOSPR.POZ_A_VIII_1","PFOSPR.POZ_A_VIII_1"]
["3","PFOSPR.POZ_A_VIII_1","PFOSPR.POZ_A_VIII_1"]
["4","PFOSPR.POZ_A_VIII_1","PFOSPR.POZ_A_VIII_1"]
["5","PFOSPR.POZ_A_VIII_1","PFOSPR.POZ_A_VIII_1"]
["6","PFOSPR.POZ_A_VIII_1","PFOSPR.POZ_A_VIII_1"]
["7","PFOSPR.POZ_A_VIII_1","PFOSPR.POZ_A_VIII_1"]
["8","PFOSPR.POZ_A_VIII_1","PFOSPR.POZ_A_VIII_1"]
["9","PFOSPR.POZ_A_VIII_1","PFOSPR.POZ_A_VIII_1"]
["10","PFOSPR.POZ_A_VIII_1","PFOSPR.POZ_A_VIII_1"]
["IX","PFOSPR.A9_1","PFOSPR.A9_1.IX","ŚRODKI PRZYZNANE INNYM PODMIOTOM 21)","x"]
["X","PFOSPR.A9_1","PFOSPR.A9_1.X","STAN NA KONIEC ROKU: ","x","x","x","x","x","x","x","x"]
[1,"PFOSPR.A9_1","PFOSPR.A9_1.X.1","Środki obrotowe, w tym: 3)","x"]
["1.1","PFOSPR.A9_1","PFOSPR.A9_1.X.1.1","Środki pieniężne 4)","x"]
["1.1.1","PFOSPR.POZ_A_X_1","PFOSPR.POZ_A_X_1"]
["1.1.2","PFOSPR.POZ_A_X_1","PFOSPR.POZ_A_X_1"]
["1.1.3","PFOSPR.POZ_A_X_1","PFOSPR.POZ_A_X_1"]
["1.1.4","PFOSPR.POZ_A_X_1","PFOSPR.POZ_A_X_1"]
["1.1.5","PFOSPR.POZ_A_X_1","PFOSPR.POZ_A_X_1"]
["1.2","PFOSPR.A10_1","PFOSPR.A10_1.X.1.2","Należności krótkoterminowe: 5)","x"]
["1.2.1","PFOSPR.A10_1","PFOSPR.A10_1.X.1.2.1","z tytułu udzielonych pożyczek","x"]
["1.2.2","PFOSPR.A10_1","PFOSPR.A10_1.X.1.2.2","od jednostek sektora finansów publicznych","x"]
["1.3","PFOSPR.A10_1","PFOSPR.A10_1.X.1.3","Zapasy","x"]
[2,"PFOSPR.A10_1","PFOSPR.A10_1.X.2","Należności długoterminowe: 5)","x"]
["2.1","PFOSPR.A10_1","PFOSPR.A10_1.X.2.1","z tytułu udzielonych pożyczek","x"]
["2.2","PFOSPR.A10_1","PFOSPR.A10_1.X.2.2","od jednostek sektora finansów publicznych","x"]
[3,"PFOSPR.A10_1","PFOSPR.A10_1.X.3","Zobowiązania: 6)","x"]
["3.1","PFOSPR.A10_1","PFOSPR.A10_1.X.3.1","z tytułu zaciągniętych pożyczek i kredytów","x"]
["3.2","PFOSPR.A10_1","PFOSPR.A10_1.X.3.2","wymagalne","x"]
["4","PFOSPR.A10_1","PFOSPR.A10_1.X.4","Ulokowane środki finansowe Funduszu Rezerwy Demograficznej","x"]
[]
["*) Niepotrzebne skreślić."]
["1) Należy wskazać właściwe paragrafy zgodnie z rozporządzeniem Ministra Finansów i Gospodarki z dnia 20 kwietnia 2026 r. w sprawie szczegółowej klasyfikacji, dochodów, wydatków,  przychodów i rozchodów"]
["   oraz środków pochodzących ze źródeł zagranicznych."]
["2) W przypadku jednostek, których plany finansowe nie stanowią załączników do ustawy budżetowej wykazuje się plan, przyjęty zgodnie z właściwymi przepisami."]
["3) W tej pozycji należy wykazać wartość aktywów obrotowych."]
["4) Należy podać wartość środków pieniężnych w kasie i na rachunkach bankowych (w tym wolnych środków finansowych przekazanych w zarządzanie lub depozyt u Ministra Finansów) "]
["   dotyczących funkcjonowania i realizacji zadań jednostki (nie wykazuje się środków funduszu świadczeń socjalnych oraz obcych środków pieniężnych np. wadiów i kaucji)."]
["5) W tej pozycji należy wykazać kwoty należności krótko/długoterminowych ogółem. Kwoty te nie stanowią sumy należności wykazywanych w pozycjach poniżej, w których należy wykazać odpowiednio kwoty "]
["   wszystkich należności krótko/długoterminowych z tytułu udzielonych pożyczek oraz wszystkich należności krótko/długoterminowych od jednostek sektora finansów publicznych."]
["6) W tej pozycji należy wykazać kwoty zobowiązań ogółem. Kwoty te nie stanowią sumy zobowiązań wykazywanych w pozycjach poniżej, w których należy wykazywać odpowiednio kwoty "]
["   wszystkich zobowiązań  z tytułu zaciągniętych pożyczek i kredytów oraz wszystkich zobowiązań wymagalnych."]
["7) Wypełniają samodzielne publiczne zakłady opieki zdrowotnej."]
["8) Wypełnia Narodowy Fundusz Zdrowia."]
["9) W tej pozycji należy wykazać środki otrzymane z UE inne niż ujmowane w częsci A w poz.II. 2 i w części B w poz. II.1."]
["10) W tej pozycji należy wykazać w szczególności środki otrzymane na realizację projektów realizowanych z udziałem środków UE oraz środki z Funduszu Przeciwdziałania COVID-19 na finansowanie  lub dofinansowanie"]
["   realizacji zadań związanych z przeciwdziałaniem COVID-19."]
["11) Należy podać kwoty przychodów odpowiadające równowartości odpisów amortyzacyjnych dokonanych od wartości początkowej składników majątkowych:\n       a) sfinansowanych ze środków pieniężnych otrzymanych w formie dotacji (nie zaliczanej do przychodów), lub \n       b) otrzymanych nieodpłatnie (jeżeli podlegają amortyzacji), chyba że przepisy systemowe stanowią inaczej, lub\n       c) finansowanych z innych źródeł, w tym np.: środków pieniężnych otrzymywanych od jednostek spoza sektora finansów publicznych czy innych przychodów."]
["12) W tej pozycji ujmuje się również honoraria."]
["13) Wypełniają tylko te podmioty, które otrzymane dotacje oraz środki, następnie przekazywane innym jednostkom (transfery), zaliczają do przychodów."]
["14) Dodatni wynik należy oznaczyć znakiem \"+\", a ujemny wynik znakiem \"-\"."]
["15) Do obliczenia wyniku finansowego nie ujmuje się dotacji na inwestycje i zakupy inwestycyjne oraz środków otrzymywanych a następnie przekazywanych innym "]
["    jednostkom (transfery), chyba że odrębne przepisy (np. ustaw regulujących gospodarkę finansową poszczególnych osób prawnych) zaliczają ww. do przychodów. "]
["    Wówczas wydatki majątkowe ujmuje się także w poz. III.3 Pozostałe koszty a środki przekazane innym podmiotom (transfery) również poz. III.2 Koszty realizacji zadań."]
["    Wykazywanie całej kwoty otrzymanej dotacji na finansowanie lub dofinansowanie kosztów realizacji inwestycji powinno odbywać się w poz. VII.1.9."]
["    Natomiast w części A formularza w poz. II.5.3 należy wykazywać kwoty przychodów odpowiadających równowartości odpisów amortyzacyjnych dokonanych od wartości "]
["    początkowej składników majątkowych: a) sfinansowanych ze środków pieniężnych otrzymanych w formie wyżej wymienionej dotacji, lub b) otrzymanych nieodpłatnie  (jeżeli podlegają amortyzacji)."]
["16) W tej pozycji należy wykazać środki w paragrafach z czwartą cyfrą 1, 2, 8 i 9."]
["17) W tej pozycji należy wykazać środki w paragrafach z czwartą cyfrą 2 i 9."]
["18) W tej pozycji należy wykazać środki w paragrafach z czwartą cyfrą 6."]
["19) Wypełnia Agencja Mienia Wojskowego."]
["20) Szczegółowe dane w zakresie tej pozycji należy przedstawić w części E. Nakłady na aktywa trwałe."]
["21) Należy wykazać wszystkie środki, także te ujęte w pozycji III. Koszty ogółem. \n    \n"]
["    Szczegółowe dane w zakresie tej pozycji należy przedstawić w części F. Dane statystyczne formularza."]
[]
[]
[]
["Część B  Plan finansowy w układzie kasowym"]
[]
["Lp.",null,null,"Wyszczególnienie","Paragraf1)","Wstępne wykonanie\n/ wykonanie*)\n na……... r.\n(rok n-2)","Ustawa budżetowa\n na ……. r.\n(rok n-1)","Przewidywane wykonanie\n w ………. r.\n(rok n-1)","Projekt planu \nna ………. r.\n(rok n)","Projekt planu \nna ………. r.\n(rok n+1)","Projekt planu \nna ………. r.\n(rok n+2)","Projekt planu \nna ………. r.\n(rok n+3)"]
[null,null,null,null,null,"w tysiącach złotych"]
[1,null,null,2,3,4,5,6,7,8,9,10]
["I","PFOSPR.B1_1","PFOSPR.B1_1.I","STAN ŚRODKÓW PIENIĘŻNYCH NA POCZĄTEK ROKU","x"]
["II","PFOSPR.B1_1","PFOSPR.B1_1.II","DOCHODY 22)","x",{"$f":"SUM(F279,F299,F300,F301)","v":0},0,0,0,0,0,0]
[1,"PFOSPR.B1_1","PFOSPR.B1_1.II.1","Dotacje i subwencje z budżetu państwa ogółem, z tego:","x",{"$f":"SUM(F280,F281,F282,F283,F285,F291,F292,F298,F287,F289)","v":0},0,0,0,0,0,0]
["1.1","PFOSPR.B1_1","PFOSPR.B1_1.II.1.1","- podmiotowa","371, 373, 375, 379"]
["1.2","PFOSPR.B1_1","PFOSPR.B1_1.II.1.2","- przedmiotowa","381"]
["1.3","PFOSPR.B1_1","PFOSPR.B1_1.II.1.3","- celowa","341, 343, 347, 348, 350   "]
["1.4","PFOSPR.B1_1","PFOSPR.B1_1.II.1.4","- celowa na finansowanie projektów z udziałem środków UE 16) - bieżące ","343, 365"]
["1.4.1","PFOSPR.B1_1","PFOSPR.B1_1.II.1.4.1","  w tym na współfinansowanie 17)"]
["1.5","PFOSPR.B1_1","PFOSPR.B1_1.II.1.5","- celowa na finansowanie projektów z udziałem środków UE 16) - majątkowe ",554]
["1.5.1","PFOSPR.B1_1","PFOSPR.B1_1.II.1.5.1","  w tym na współfinansowanie 17)"]
["1.6","PFOSPR.B1_1","PFOSPR.B1_1.II.1.6","- celowa na finansowanie projektów z udziałem środków EFTA - bieżące",365]
["1.6.1","PFOSPR.B1_1","PFOSPR.B1_1.II.1.6.1","  w tym: na współfinansowanie 18)","x"]
["1.7","PFOSPR.B1_1","PFOSPR.B1_1.II.1.7","- celowa na finansowanie projektów z udziałem środków EFTA - majątkowe",554]
["1.7.1","PFOSPR.B1_1","PFOSPR.B1_1.II.1.7.1","  w tym: na współfinansowanie 18)","x"]
["1.8","PFOSPR.B1_1","PFOSPR.B1_1.II.1.8","- subwencje",432]
["1.9","PFOSPR.B1_1","PFOSPR.B1_1.II.1.9","- dotacje na inwestycje i zakupy inwestycyjne 19)","536, 538, 539, 541",null,null,null,null,null,null,null,null,null,null,"- dotacje na inwestycje i zakupy inwestycyjne 19)"]
["1.9.1","PFOSPR.POZ_B_II_1","PFOSPR.POZ_B_II_1",null,null,null,null,null,null,null,null,null,null,null,null,"- dotacje na inwestycje i zakupy inwestycyjne, w tym: 19)"]
["1.9.2","PFOSPR.POZ_B_II_1","PFOSPR.POZ_B_II_1"]
["1.9.3","PFOSPR.POZ_B_II_1","PFOSPR.POZ_B_II_1"]
["1.9.4","PFOSPR.POZ_B_II_1","PFOSPR.POZ_B_II_1"]
["1.9.5","PFOSPR.POZ_B_II_1","PFOSPR.POZ_B_II_1"]
["1.10","PFOSPR.B1_1B","PFOSPR.B1_1B.II.1.10","- na pierwsze wyposażenie w środki obrotowe"]
[2,"PFOSPR.B1_1B","PFOSPR.B1_1B.II.2","Środki otrzymane z Unii Europejskiej 9)"]
[3,"PFOSPR.B1_1B","PFOSPR.B1_1B.II.3","Środki otrzymane od innych jednostek sektora finansów publicznych"]
[4,"PFOSPR.B1_1B","PFOSPR.B1_1B.II.4","Pozostałe dochody, z tego:","x",{"$f":"SUM(F302,F303,F304,F306:F314)","v":0},0,0,0,0,0,0]
["4.1","PFOSPR.B1_1B","PFOSPR.B1_1B.II.4.1","Dochody netto ze sprzedaży produktów sprzedanych NFZ 7)"]
["4.2","PFOSPR.B1_1B","PFOSPR.B1_1B.II.4.2","Dochody z tytułu składek na ubezpieczenie zdrowotne 8)"]
["4.3","PFOSPR.B1_1B","PFOSPR.B1_1B.II.4.3","Odsetki (np. z tytułu udzielonych pożyczek), w tym:",690]
["4.3.1","PFOSPR.B1_1B","PFOSPR.B1_1B.II.4.3.1"," od depozytów u Ministra Finansów lub z tytułu skarbowych papierów wartościowych","x"]
["4.4","PFOSPR.B1_1B","PFOSPR.B1_1B.II.4.4","Środki otrzymane od  jednostek spoza sektora finansów publicznych10)"]
["4.5","PFOSPR.POZ_B_II_4","PFOSPR.POZ_B_II_4"]
["4.6","PFOSPR.POZ_B_II_4","PFOSPR.POZ_B_II_4"]
["4.7","PFOSPR.POZ_B_II_4","PFOSPR.POZ_B_II_4"]
["4.8","PFOSPR.POZ_B_II_4","PFOSPR.POZ_B_II_4"]
["4.9","PFOSPR.POZ_B_II_4","PFOSPR.POZ_B_II_4"]
["4.10","PFOSPR.POZ_B_II_4","PFOSPR.POZ_B_II_4"]
["4.11","PFOSPR.POZ_B_II_4","PFOSPR.POZ_B_II_4"]
["4.12","PFOSPR.POZ_B_II_4","PFOSPR.POZ_B_II_4"]
["III","PFOSPR.B3_1","PFOSPR.B3_1.III","WYDATKI 23)","x",{"$f":"SUM(F326,F357,F358,F382,F383)","v":0},0,0,0,0,0,0]
[null,"PFOSPR.B3_1","PFOSPR.B3_1.III.0","w tym:","x",{"$f":"F317+F318+F319+F320+F321+F322+F323+F324+F325","v":0},{"$f":"G317+G318+G319+G320+G321+G322+G323+G324+G325","v":0},0,0,0,0,0]
["III.A","PFOSPR.B3_1","PFOSPR.B3_1.III.A","- finansowanie z UE pochodzące z BP 24)","x"]
["III.B","PFOSPR.B3_1","PFOSPR.B3_1.III.B","- finansowanie z UE pochodzące z BŚE","x"]
["III.C","PFOSPR.B3_1","PFOSPR.B3_1.III.C","- finansowanie z EFTA pochodzące z BP 25)","x"]
["III.D","PFOSPR.B3_1","PFOSPR.B3_1.III.D","- finansowanie z EFTA pochodzące z BŚE","x"]
["III.E","PFOSPR.B3_1","PFOSPR.B3_1.III.E","- finansowanie zadań w ramach KPO – część grantowa","x"]
["III.F","PFOSPR.B3_1","PFOSPR.B3_1.III.F","- współfinansowanie krajowe z BP w ramach projektów UE 17)","x"]
["III.G","PFOSPR.B3_1","PFOSPR.B3_1.III.G","- współfinansowanie krajowe z BP w ramach projektów EFTA 18)","x"]
["III.H","PFOSPR.B3_1","PFOSPR.B3_1.III.H","- współfinansowanie krajowe z innych źródeł niż BP w ramach projektów UE 17)","x"]
["III.I","PFOSPR.B3_1","PFOSPR.B3_1.III.I","- finansowanie z innych źródeł niż BP i BŚE w ramach projektów UE 24)","x"]
[1,"PFOSPR.B3_1","PFOSPR.B3_1.III.1","Wydatki na funkcjonowanie, z tego:","x",{"$f":"SUM(F327,F328,F329,F335,F336,F337,F343,F344,F356)","v":0},{"$f":"SUM(G327,G328,G329,G335,G336,G337,G343,G344,G356)","v":0},0,0,0,0,0]
["1.1","PFOSPR.B3_1","PFOSPR.B3_1.III.1.1","Materiały i energia ","63026)"]
["1.2","PFOSPR.B3_1","PFOSPR.B3_1.III.1.2","Usługi obce","63026), 634, …"]
["1.3","PFOSPR.B3_1","PFOSPR.B3_1.III.1.3","Wynagrodzenia i uposażenia, z tego:","238, 601-603, 607, 615-619, 668-670",{"$f":"SUM(F330:F334)","v":0},{"$f":"SUM(G330:G334)","v":0},0,0,0,0,0]
["1.3.1","PFOSPR.B3_1","PFOSPR.B3_1.III.1.3.1"," wynagrodzenia osobowe "]
["1.3.2","PFOSPR.B3_1","PFOSPR.B3_1.III.1.3.2"," wynagrodzenia bezosobowe 12)"]
["1.3.3","PFOSPR.B3_1","PFOSPR.B3_1.III.1.3.3"," uposażenia"]
["1.3.4","PFOSPR.B3_1","PFOSPR.B3_1.III.1.3.4","należności żołnierzy zawodowych i funkcjonariuszy o charakterze wynagrodzeniowym ",618]
["1.3.5","PFOSPR.B3_1","PFOSPR.B3_1.III.1.3.5"," pozostałe "]
["1.4","PFOSPR.B3_1","PFOSPR.B3_1.III.1.4","Świadczenia na rzecz osób fizycznych","215, 232, 233, 234, …"]
["1.5","PFOSPR.B3_1","PFOSPR.B3_1.III.1.5","Inne wydatki na rzecz osób fizycznych","672, 673"]
["1.6","PFOSPR.B3_1","PFOSPR.B3_1.III.1.6","Składki, z tego na:","x",{"$f":"SUM(F338:F342)","v":0},{"$f":"SUM(G338:G342)","v":0},0,0,0,0,0]
["1.6.1","PFOSPR.B3_1","PFOSPR.B3_1.III.1.6.1"," ubezpieczenie społeczne",621]
["1.6.2","PFOSPR.B3_1","PFOSPR.B3_1.III.1.6.2"," Fundusz Pracy oraz Fundusz Solidarnościowy",622]
["1.6.3","PFOSPR.B3_1","PFOSPR.B3_1.III.1.6.3"," Fundusz Emerytur Pomostowych",624]
["1.6.4","PFOSPR.B3_1","PFOSPR.B3_1.III.1.6.4","Wpłaty na pracownicze plany kapitałowe","623"]
["1.6.5","PFOSPR.B3_1","PFOSPR.B3_1.III.1.6.5"," pozostałe"]
["1.7","PFOSPR.B3_1","PFOSPR.B3_1.III.1.7","Płatności odsetkowe wynikające z zaciągniętych zobowiązań",690]
["1.8","PFOSPR.B3_1","PFOSPR.B3_1.III.1.8","Podatki i opłaty, w tym:","x"]
["1.8.1","PFOSPR.B3_1","PFOSPR.B3_1.III.1.8.1"," podatek akcyzowy"]
["1.8.2","PFOSPR.B3_1","PFOSPR.B3_1.III.1.8.2"," podatek od towarów i usług (VAT)",101]
["1.8.3","PFOSPR.B3_1","PFOSPR.B3_1.III.1.8.3"," podatek CIT",120]
["1.8.4","PFOSPR.B3_1","PFOSPR.B3_1.III.1.8.4"," opłaty na rzecz budżetów jednostek samorządu terytorialnego","177, 178, 656, 657"]
["1.8.5","PFOSPR.B3_1","PFOSPR.B3_1.III.1.8.5"," podatki stanowiące źródło dochodów własnych jednostek samorządu terytorialnego","138, 143"]
["1.8.6","PFOSPR.B3_1","PFOSPR.B3_1.III.1.8.6"," opłaty na rzecz budżetu państwa","171, 656, 657"]
["1.8.7","PFOSPR.POZ_B_III_1","PFOSPR.POZ_B_III_1",null,"x"]
["1.8.8","PFOSPR.POZ_B_III_1","PFOSPR.POZ_B_III_1",null,"x"]
["1.8.9","PFOSPR.POZ_B_III_1","PFOSPR.POZ_B_III_1",null,"x"]
["1.8.10","PFOSPR.POZ_B_III_1","PFOSPR.POZ_B_III_1",null,"x"]
["1.8.11","PFOSPR.POZ_B_III_1","PFOSPR.POZ_B_III_1",null,"x"]
["1.9","PFOSPR.B3_12","PFOSPR.B3_12.III.1.9","Pozostałe wydatki na funkcjonowanie"]
[2,"PFOSPR.B3_12","PFOSPR.B3_12.III.2","Wydatki majątkowe"]
[3,"PFOSPR.B3_12","PFOSPR.B3_12.III.3","Wydatki na realizację zadań, w tym:","x"]
["3.1","PFOSPR.B3_12","PFOSPR.B3_12.III.3.1"," - środki przyznane innym podmiotom 27)"]
["3.2","PFOSPR.POZ_B_III_3","PFOSPR.POZ_B_III_3"]
["3.2.1","PFOSPR.POZ_B_III_3","PFOSPR.POZ_B_III_3"]
["3.2.2","PFOSPR.POZ_B_III_3","PFOSPR.POZ_B_III_3"]
["3.2.3","PFOSPR.POZ_B_III_3","PFOSPR.POZ_B_III_3"]
["3.2.4","PFOSPR.POZ_B_III_3","PFOSPR.POZ_B_III_3"]
["3.2.5","PFOSPR.POZ_B_III_3","PFOSPR.POZ_B_III_3"]
["3.2.6","PFOSPR.POZ_B_III_3","PFOSPR.POZ_B_III_3"]
["3.2.7","PFOSPR.POZ_B_III_3","PFOSPR.POZ_B_III_3"]
["3.2.8","PFOSPR.POZ_B_III_3","PFOSPR.POZ_B_III_3"]
["3.3","PFOSPR.POZ_B_III_3","PFOSPR.POZ_B_III_3"]
["3.4","PFOSPR.POZ_B_III_3","PFOSPR.POZ_B_III_3"]
["3.5","PFOSPR.POZ_B_III_3","PFOSPR.POZ_B_III_3"]
["3.6","PFOSPR.POZ_B_III_3","PFOSPR.POZ_B_III_3"]
["3.7","PFOSPR.POZ_B_III_3","PFOSPR.POZ_B_III_3"]
["3.8","PFOSPR.POZ_B_III_3","PFOSPR.POZ_B_III_3"]
["3.9","PFOSPR.POZ_B_III_3","PFOSPR.POZ_B_III_3"]
["3.10","PFOSPR.POZ_B_III_3","PFOSPR.POZ_B_III_3"]
["3.11","PFOSPR.POZ_B_III_3","PFOSPR.POZ_B_III_3"]
["3.12","PFOSPR.POZ_B_III_3","PFOSPR.POZ_B_III_3"]
["3.13","PFOSPR.POZ_B_III_3","PFOSPR.POZ_B_III_3"]
["3.14","PFOSPR.POZ_B_III_3","PFOSPR.POZ_B_III_3"]
["3.15","PFOSPR.POZ_B_III_3","PFOSPR.POZ_B_III_3"]
[4,"PFOSPR.B3_2","PFOSPR.B3_2.III.4","Wpłata do budżetu państwa (np. z zysku, nadwyżki środków finansowych)","461, 462, 464"]
[5,"PFOSPR.B3_2","PFOSPR.B3_2.III.5","Pozostałe wydatki"]
["IV","PFOSPR.B4_1","PFOSPR.B4_1.IV","Kasowo zrealizowane przychody 28)"]
[1,"PFOSPR.B4_1","PFOSPR.B4_1.IV.1","Zaciągnięte kredyty i pożyczki"]
[2,"PFOSPR.B4_1","PFOSPR.B4_1.IV.2","Przychody z prywatyzacji"]
[3,"PFOSPR.POZ_B_IV_3","PFOSPR.POZ_B_IV_3"]
[4,"PFOSPR.POZ_B_IV_3","PFOSPR.POZ_B_IV_3"]
[5,"PFOSPR.POZ_B_IV_3","PFOSPR.POZ_B_IV_3"]
[6,"PFOSPR.POZ_B_IV_3","PFOSPR.POZ_B_IV_3"]
[7,"PFOSPR.POZ_B_IV_3","PFOSPR.POZ_B_IV_3"]
["V","PFOSPR.B4_2","PFOSPR.B4_2.V","Kasowo zrealizowane rozchody 29)"]
[1,"PFOSPR.B4_2","PFOSPR.B4_2.V.1","Spłata kredytów i pożyczek"]
["2","PFOSPR.POZ_B_V_2","PFOSPR.POZ_B_V_2"]
[2,"PFOSPR.POZ_B_V_2","PFOSPR.POZ_B_V_2"]
["3","PFOSPR.POZ_B_V_2","PFOSPR.POZ_B_V_2"]
["4","PFOSPR.POZ_B_V_2","PFOSPR.POZ_B_V_2"]
["5","PFOSPR.POZ_B_V_2","PFOSPR.POZ_B_V_2"]
["VI","PFOSPR.B4_3","PFOSPR.B4_3.VI","STAN ŚRODKÓW PIENIĘŻNYCH NA KONIEC ROKU  (I+II-III+IV-V)","x",{"$f":"F277+F278-F315+F384-F392","v":0},0,0,0,0,0,0]
["VII","PFOSPR.B4_3","PFOSPR.B4_3.VII","Zatrudnienie w przeliczeniu na pełne etaty 30)"]
[]
[]
["22) Dotyczy dochodów, przychodów, o których mowa w art. 5 ust. 1 pkt 5 ustawy o finansach publicznych oraz środków, o których mowa w art. 5 ust. 1 pkt 2 i 3 ustawy, nie ujmuje się przychodów, "]
["     o których mowa w art. 5 ust. 1 pkt 4 tej ustawy."]
["23) Nie ujmuje się rozchodów, o których mowa w art. 6 ust. 2 ustawy o finansach publicznych."]
["24)  W tej pozycji należy wykazać środki w paragrafach z czwartą cyfrą 1, 8."]
["25)  W tej pozycji należy wykazać środki w paragrafach z czwartą cyfrą 5."]
["26)  W kolumnie \"Przewidywane wykonanie w roku bieżącym (n-1)\" należy wykazać kwoty wydatków wykonywane we właściwych paragrafach z katalogu określonego w pargrafie 630 klasyfikacji, o której mowa w przypisie 1. "]
["27) Należy podać kwotę ogółem, szczegółowe dane w zakresie tej pozycji należy przedstawić w części F. Dane statystyczne formularza."]
["28) W rozumieniu art. 5 ust. 1 pkt 4 ustawy o finansach publicznych."]
["29) W rozumieniu art. 6 ust. 2 ustawy o finansach publicznych."]
["30) Należy wykazać stan zatrudnienia w ujęciu średniorocznym."]

{"sheet":"PF-OSPR C","index":1,"n_rows":23,"n_cols":44,"rows_kept":23,"cut":false,"hidden":true,"merged":[[5,4,5,7],[5,13,5,14],[5,17,6,17],[5,15,6,15],[3,8,3,16],[5,9,5,12],[5,8,6,8],[5,40,5,41],[5,25,6,25],[5,27,5,30],[3,17,3,25],[5,26,6,26],[5,33,6,33],[5,31,5,32],[3,26,3,34],[5,34,6,34],[2,0,6,0],[2,1,6,1],[5,2,6,2],[5,3,6,3],[5,24,6,24],[5,18,5,21],[5,22,5,23],[2,2,4,7],[4,8,4,43],[5,16,6,16],[5,35,6,35],[5,36,5,39],[3,35,3,43],[5,43,6,43],[5,42,6,42],[2,8,2,43]]}
[]
["Część C  Plan finansowy w układzie zadaniowym*)"]
["Kod klasyfikacji zadaniowej","Cel","Miernik",null,null,null,null,null,"Wydatki według źródeł finansowania / Koszty"]
[null,null,null,null,null,null,null,null,"2018 r.",null,null,null,null,null,null,null,null,"2019 r.",null,null,null,null,null,null,null,null,"2020 r.",null,null,null,null,null,null,null,null,"2021 r."]
[null,null,null,null,null,null,null,null,"w tysiącach złotych"]
[null,null,"Nazwa","Wartość bazowa","Docelowa",null,null,null,"Ogółem\n(10+14+16+17)","Dotacje z budżetu państwa",null,null,null,"Środki otrzymane od innych jednostek SFP o których mowa w art. 9 pkt 5-7 i 14 uofp",null,"Budżet środków europejskich","Pozostałe środki ","Ogółem\n(19+23+25+26)","Dotacje z budżetu państwa",null,null,null,"Środki otrzymane od innych jednostek SFP o których mowa w art. 9 pkt 5-7 i 14 uofp",null,"Budżet środków europejskich","Pozostałe środki ","Ogółem\n(28+32+34+35)","Dotacje z budżetu państwa",null,null,null,"Środki otrzymane od innych jednostek SFP o których mowa w art. 9 pkt 5-7 i 14 uofp",null,"Budżet środków europejskich","Pozostałe środki ","Ogółem\n(37+41+43+44)","Dotacje z budżetu państwa",null,null,null,"Środki otrzymane od innych jednostek SFP o których mowa w art. 9 pkt 5-7 i 14 uofp",null,"Budżet środków europejskich","Pozostałe środki "]
[null,null,null,null,"2018 r.","2019 r.","2020 r.","2021 r.",null,"Kwota dotacji","Część budżetowa","Dział klasyfikacji budżetowej","Rozdział klasyfikacji budżetowej","Kwota przekazanych środków","Jednostka przekazująca",null,null,null,"Kwota dotacji","Część budżetowa","Dział klasyfikacji budżetowej","Rozdział klasyfikacji budżetowej","Kwota przekazanych środków","Jednostka przekazująca",null,null,null,"Kwota dotacji","Część budżetowa","Dział klasyfikacji budżetowej","Rozdział klasyfikacji budżetowej","Kwota przekazanych środków","Jednostka przekazująca",null,null,null,"Kwota dotacji","Część budżetowa","Dział klasyfikacji budżetowej","Rozdział klasyfikacji budżetowej","Kwota przekazanych środków","Jednostka przekazująca"]
[1,2,3,4,5,6,7,8,9,10,11,12,13,14,15,16,17,18,19,20,21,22,23,24,25,26,27,28,29,30,31,32,33,34,35,36,37,38,39,40,41,42,43,44]
[]
[]
[]
[]
[]
[null,null,null,null,null,null,null,null,null,null,null,null,null,null,null,null," "]
[]
["*) Formularze sporządzone w podziale na części budżetowe przekazuje się właściwym dysponentom części budżetowych oraz ministrowi nadzorującemu jednostkę; formularz sporządzony w ujęciu łącznym przekazuje się ministrowi nadzorującemu jednostkę."]
["**) Kolumna \"2020 r.\"  dotyczy jedynie sporzadzania materiałów na potrzeby Wieloletniego Planu Finansowego Państwa."]
[]
["sporządził ....................................................................."]
[null,"          (imię i nazwisko, stanowisko służbowe)"]
[]
["nr telefonu .........................     adres e-mail ........................................"]
["data .........................              podpis ........................."]

{"sheet":"PF-OSPR C D","index":2,"n_rows":36,"n_cols":11,"rows_kept":36,"cut":false,"hidden":false,"merged":[[1,0,1,10],[20,0,20,10],[3,0,4,0],[3,3,4,3],[4,6,4,10],[44,0,44,8],[22,3,23,3],[22,0,23,0],[23,4,23,10],[3,2,4,2],[3,1,4,1]]}
[]
["Część C.  Dane uzupełniające"]
[]
["Lp.","CHAPTER_CODE","UATTRIBUTE01","Wyszczególnienie","Wstępne wykonanie\n/ wykonanie*)\n na……... r.\n(rok n-2)","Ustawa budżetowa\n na ……. r.\n(rok n-1)","Przewidywane wykonanie\n w ………. r.\n(rok n-1)","Projekt planu \nna ………. r.\n(rok n)","Projekt planu \nna ………. r.\n(rok n+1)","Projekt planu \nna ………. r.\n(rok n+2)","Projekt planu \nna ………. r.\n(rok n+3)"]
[null,null,null,null,null,null,"w tysiącach złotych"]
[1,null,null,2,3,4,5,6,7,8,9]
[1,"PFOSPR.C1_1","PFOSPR.C1_1.1","Zobowiązania 31) \nzaliczane do państwowego długu publicznego wg wartości nominalnej, z tego:"]
["1.1","PFOSPR.C1_1","PFOSPR.C1_1.1.1","Papiery wartościowe"]
["1.2","PFOSPR.C1_1","PFOSPR.C1_1.1.2","Kredyty i pożyczki, w tym zaciągnięte od:"]
[null,"PFOSPR.C1_1","PFOSPR.C1_1.1.2.1"," - sektora finansów publicznych"]
[null,"PFOSPR.POZ_C_I_1","PFOSPR.POZ_C_I_1"]
[null,"PFOSPR.POZ_C_I_1","PFOSPR.POZ_C_I_1"]
[null,"PFOSPR.C1_2","PFOSPR.C1_2.1.2.2"," - pozostałych"]
["1.3","PFOSPR.C1_2","PFOSPR.C1_2.1.3","Depozyty przyjęte przez jednostkę"]
["1.4","PFOSPR.C1_2","PFOSPR.C1_2.1.4","Zobowiązania wymagalne"]
[]
["31) Należy podać przewidywany stan na dzień 31 grudnia."]
[]
[]
[]
["Część D.  Dane uzupełniające"]
[]
["Lp.","CHAPTER_CODE","UATTRIBUTE01","Wyszczególnienie","Wstępne wykonanie\n/ wykonanie*)\n na……... r.\n(rok n-2)","Ustawa budżetowa\n na ……. r.\n(rok n-1)","Przewidywane wykonanie\n w ………. r.\n(rok n-1)","Projekt planu \nna ………. r.\n(rok n)","Projekt planu \nna ………. r.\n(rok n+1)","Projekt planu \nna ………. r.\n(rok n+2)","Projekt planu \nna ………. r.\n(rok n+3)"]
[null,null,null,null,"w tysiącach złotych"]
[1,null,null,2,3,4,5,6,7,8,9]
[1,"PFOSPR.D1_1","PFOSPR.D1_1.1","Wolne środki finansowe przekazane w zarządzanie lub depozyt u Ministra Finansów"]
["1.1","PFOSPR.D1_1","PFOSPR.D1_1.1.1"," - depozyty overnight (O/N)"]
["1.2","PFOSPR.D1_1","PFOSPR.D1_1.1.2"," - depozyty terminowe"]
[2,"PFOSPR.D1_1","PFOSPR.D1_1.2","Skarbowe papiery wartościowe posiadane przez jednostkę, określone w wartości nominalnej 32)"]
["2.1","PFOSPR.D1_1","PFOSPR.D1_1.2.1","w tym: otrzymane nieodpłatnie skarbowe papiery wartościowe posiadane przez jednostkę, określone w wartości nominalnej 33)"]
["2.2","PFOSPR.POZ_D_I_1","PFOSPR.POZ_D_I_1"]
["2.3","PFOSPR.POZ_D_I_1","PFOSPR.POZ_D_I_1"]
["3.","PFOSPR.D1_3","PFOSPR.D1_3.3","Skarbowe papiery wartościowe otrzymane nieodpłatnie w danym roku w wartości nominalnej"]
[]
["32) Należy wykazać wszystkie skarbowe papiery wartościowe posiadane przez jednostkę określone w wartości nominalnej wg stanu na 31 grudnia danego roku."]
["33) Należy wykazać wszystkie otrzymane nieodpłatnie skarbowe papiery wartościowe posiadane przez jednostkę określone w wartości nominalnej wg stanu na 31 grudnia danego roku."]

{"sheet":"PF-OSPR E F","index":3,"n_rows":417,"n_cols":11,"rows_kept":417,"cut":false,"hidden":false,"merged":[[1,0,1,10],[37,0,37,10],[7,4,7,10],[43,4,43,10],[415,3,415,10],[3,1,7,1],[3,2,7,2],[3,3,7,3],[39,1,43,1],[39,2,43,2],[39,3,43,3],[227,0,227,10],[229,1,233,1],[229,2,233,2],[229,3,233,3],[233,4,233,10],[225,0,225,3]]}
[]
["Część E. Informacje nt. nakładów na aktywa trwałe / środków na wydatki majątkowe"]
[]
[null,"CHAPTER_CODE","UATTRIBUTE01","Wyszczególnienie","Wstępne wykonanie","Ustawa","Przewidywane ","Projekt","Projekt","Projekt","Projekt"]
[null,null,null,null," / wykonanie*)","budżetowa","wykonanie","planu ","planu ","planu ","planu "]
["Lp.",null,null,null," ……. r.","na ……... r. 2)","w ………. r.","na ……….. r.","na ………... r.","na ……….. r.","na …….. r."]
[null,null,null,null,"(rok n-2)","(rok n-1)","(rok n-1)","(rok n)","(rok n+1)","(rok n+2)","(rok n+3)"]
[null,null,null,null,"w tysiącach złotych"]
[1,null,null,2,3,4,5,6,7,8,9]
["I","PFOSPR.E1_1","PFOSPR.E1_1.I","Nakłady na rzeczowe aktywa trwałe i wartości niematerialne i prawne (wartość od początku roku do końca okresu sprawozdawczego) (=A.VIII)",{"$f":"'PF-OSPR A B'!F200","v":0},{"$f":"'PF-OSPR A B'!G200","v":0},{"$f":"'PF-OSPR A B'!H200","v":0},{"$f":"'PF-OSPR A B'!I200","v":0},{"$f":"'PF-OSPR A B'!J200","v":0},{"$f":"'PF-OSPR A B'!K200","v":0},{"$f":"'PF-OSPR A B'!L200","v":0}]
["II","PFOSPR.E1_1","PFOSPR.E1_1.II","Finansowanie ( I = II = II.1+II.2+II.3)",{"$f":"SUM(E12,E17,E23)","v":0},{"$f":"SUM(F12,F17,F23)","v":0},0,0,0,0,0]
["1.","PFOSPR.E1_1","PFOSPR.E1_1.II.1","Dotacje od:",{"$f":"SUM(E13:E16)","v":0},{"$f":"SUM(F13:F16)","v":0},0,0,0,0,0]
[null,"PFOSPR.E1_1","PFOSPR.E1_1.II.1.1"," - budżetu państwa"]
[null,"PFOSPR.E1_1","PFOSPR.E1_1.II.1.2"," - jednostek samorządu terytorialnego i ich związków oraz związków metropolitalnych"]
[null,"PFOSPR.E1_1","PFOSPR.E1_1.II.1.3"," - pozostałych jednostek zaliczanych do sektora finansów publicznych 34)"]
[null,"PFOSPR.E1_1","PFOSPR.E1_1.II.1.4"," - jednostek spoza sektora finansów publicznych"]
["2.","PFOSPR.E1_1","PFOSPR.E1_1.II.2","Środki europejskie, o których mowa w art. 5 ust. 3 pkt 1, 2, 4 i 5a-5c ustawy o finansach publicznych, od:",{"$f":"SUM(E18:E22)","v":0},{"$f":"SUM(F18:F22)","v":0},0,0,0,0,0]
[null,"PFOSPR.E1_1","PFOSPR.E1_1.II.2.1"," - budżetu państwa"]
[null,"PFOSPR.E1_1","PFOSPR.E1_1.II.2.2"," - budżetu środków europejskich"]
[null,"PFOSPR.E1_1","PFOSPR.E1_1.II.2.3"," - jednostek samorządu terytorialnego i ich związków oraz związków metropolitalnych"]
[null,"PFOSPR.E1_1","PFOSPR.E1_1.II.2.4"," - pozostałych jednostek zaliczanych do sektora finansów publicznych 34)"]
[null,"PFOSPR.E1_1","PFOSPR.E1_1.II.2.5"," - jednostek spoza sektora finansów publicznych"]
["3.","PFOSPR.E1_1","PFOSPR.E1_1.II.3","Pozostałe (np. kredyty, własne środki finansowe)"]
["III","PFOSPR.E1_1","PFOSPR.E1_1.III","Amortyzacja (III.1+III.2=A.III.1.1)",{"$f":"E25+E26","v":0},{"$f":"F25+F26","v":0},0,0,0,0,0]
["1.","PFOSPR.E1_1","PFOSPR.E1_1.III.1"," odpisy od środków trwałych i wartości niematerialnych i prawnych sfinansowanych ze środków własnych"]
["2.","PFOSPR.E1_1","PFOSPR.E1_1.III.2"," odpisy od środków trwałych i wartości niematerialnych i prawnych: "]
[null,"PFOSPR.E1_1","PFOSPR.E1_1.III.2.1","  - sfinansowanych z dotacji"]
[null,"PFOSPR.E1_1","PFOSPR.E1_1.III.2.2","  - otrzymanych nieodpłatnie"]
[null,"PFOSPR.POZ_E_III_1","PFOSPR.POZ_E_III_1"]
[null,"PFOSPR.POZ_E_III_1","PFOSPR.POZ_E_III_1"]
[null,"PFOSPR.POZ_E_III_1","PFOSPR.POZ_E_III_1"]
[null,"PFOSPR.POZ_E_III_1","PFOSPR.POZ_E_III_1"]
[null,"PFOSPR.POZ_E_III_1","PFOSPR.POZ_E_III_1"]
[]
[]
[]
[]
["Część F.  Dane statystyczne w układzie memoriałowym"]
[]
[null,"CHAPTER_CODE","UATTRIBUTE01","Wyszczególnienie","Wstępne wykonanie","Ustawa","Przewidywane ","Projekt","Projekt","Projekt","Projekt"]
[null,null,null,null," / wykonanie*)","budżetowa","wykonanie","planu ","planu ","planu ","planu "]
["Lp.",null,null,null," ……. r.","na ……... r. 2)","w ………. r.","na ……….. r.","na ………... r.","na ……….. r.","na …….. r."]
[null,null,null,null,"(rok n-2)","(rok n-1)","(rok n-1)","(rok n)","(rok n+1)","(rok n+2)","(rok n+3)"]
[null,null,null,null,"w tysiącach złotych"]
[1,null,null,2,3,4,5,6,7,8,9]
["I","PFOSPR.F1_1","PFOSPR.F1_1.I","Otrzymane środki na finansowanie lub dofinansowanie zadań bieżących\n (I = I.1+I.2+I.3)",{"$f":"SUM(E47,E59,E72)","v":0},{"$f":"SUM(F47,F59,F72)","v":0},0,0,0,0,0]
["1.","PFOSPR.F1_1","PFOSPR.F1_1.I.1","Dotacje i subwencje od:"]
[null,"PFOSPR.F1_1","PFOSPR.F1_1.I.1.1"," - budżetu państwa"]
[null,"PFOSPR.F1_1","PFOSPR.F1_1.I.1.2"," - jednostek samorządu terytorialnego i ich związków oraz związków metropolitalnych"]
[null,"PFOSPR.F1_1","PFOSPR.F1_1.I.1.3"," - pozostałych jednostek zaliczanych do sektora finansów publicznych 34)"]
[null,"PFOSPR.POZ_F_I_1","PFOSPR.POZ_F_I_1"]
[null,"PFOSPR.POZ_F_I_1","PFOSPR.POZ_F_I_1"]
[null,"PFOSPR.POZ_F_I_1","PFOSPR.POZ_F_I_1"]
[null,"PFOSPR.POZ_F_I_1","PFOSPR.POZ_F_I_1"]
[null,"PFOSPR.POZ_F_I_1","PFOSPR.POZ_F_I_1"]
[null,"PFOSPR.POZ_F_I_1","PFOSPR.POZ_F_I_1"]
[null,"PFOSPR.POZ_F_I_1","PFOSPR.POZ_F_I_1"]
[null,"PFOSPR.POZ_F_I_1","PFOSPR.POZ_F_I_1"]
["2.","PFOSPR.F1_2","PFOSPR.F1_2.I.2","Środki europejskie, o których mowa w art. 5 ust. 3 pkt 1, 2, 4 i 5a-5c ustawy o finansach publicznych, od:"]
[null,"PFOSPR.F1_2","PFOSPR.F1_2.I.2.1"," - budżetu państwa"]
[null,"PFOSPR.F1_2","PFOSPR.F1_2.I.2.2"," - budżetu środków europejskich"]
[null,"PFOSPR.F1_2","PFOSPR.F1_2.I.2.3"," - jednostek samorządu terytorialnego i ich związków oraz związków metropolitalnych"]
[null,"PFOSPR.F1_2","PFOSPR.F1_2.I.2.4"," - pozostałych jednostek zaliczanych do sektora finansów publicznych 34)"]
[null,"PFOSPR.POZ_F_I_2","PFOSPR.POZ_F_I_2"]
[null,"PFOSPR.POZ_F_I_2","PFOSPR.POZ_F_I_2"]
[null,"PFOSPR.POZ_F_I_2","PFOSPR.POZ_F_I_2"]
[null,"PFOSPR.POZ_F_I_2","PFOSPR.POZ_F_I_2"]
[null,"PFOSPR.POZ_F_I_2","PFOSPR.POZ_F_I_2"]
[null,"PFOSPR.POZ_F_I_2","PFOSPR.POZ_F_I_2"]
[null,"PFOSPR.POZ_F_I_2","PFOSPR.POZ_F_I_2"]
[null,"PFOSPR.POZ_F_I_2","PFOSPR.POZ_F_I_2"]
["3.","PFOSPR.F1_3","PFOSPR.F1_3.I.3","Środki otrzymane od jednostek niezaliczanych do sektora finansów publicznych"]
["II","PFOSPR.F2_1","PFOSPR.F2_1.II","Przekazane środki na finansowanie lub dofinansowanie zadań bieżących \n(II = II.1+II.2+II.3+II.4)",{"$f":"SUM(E74,E125,E134,E154)","v":0},0,0,0,0,0,0]
["1.","PFOSPR.F2_1","PFOSPR.F2_1.II.1","Dotacje do jednostek zaliczanych do sektora finansów publicznych, z tego do: 34)"]
[null,"PFOSPR.POZ_F_II_1","PFOSPR.POZ_F_II_1"]
[null,"PFOSPR.POZ_F_II_1","PFOSPR.POZ_F_II_1"]
[null,"PFOSPR.POZ_F_II_1","PFOSPR.POZ_F_II_1"]
[null,"PFOSPR.POZ_F_II_1","PFOSPR.POZ_F_II_1"]
[null,"PFOSPR.POZ_F_II_1","PFOSPR.POZ_F_II_1"]
[null,"PFOSPR.POZ_F_II_1","PFOSPR.POZ_F_II_1"]
[null,"PFOSPR.POZ_F_II_1","PFOSPR.POZ_F_II_1"]
[null,"PFOSPR.POZ_F_II_1","PFOSPR.POZ_F_II_1"]
[null,"PFOSPR.POZ_F_II_1","PFOSPR.POZ_F_II_1"]
[null,"PFOSPR.POZ_F_II_1","PFOSPR.POZ_F_II_1"]
[null,"PFOSPR.POZ_F_II_1","PFOSPR.POZ_F_II_1"]
[null,"PFOSPR.POZ_F_II_1","PFOSPR.POZ_F_II_1"]
[null,"PFOSPR.POZ_F_II_1","PFOSPR.POZ_F_II_1"]
[null,"PFOSPR.POZ_F_II_1","PFOSPR.POZ_F_II_1"]
[null,"PFOSPR.POZ_F_II_1","PFOSPR.POZ_F_II_1"]
[null,"PFOSPR.POZ_F_II_1","PFOSPR.POZ_F_II_1"]
[null,"PFOSPR.POZ_F_II_1","PFOSPR.POZ_F_II_1"]
[null,"PFOSPR.POZ_F_II_1","PFOSPR.POZ_F_II_1"]
[null,"PFOSPR.POZ_F_II_1","PFOSPR.POZ_F_II_1"]
[null,"PFOSPR.POZ_F_II_1","PFOSPR.POZ_F_II_1"]
[null,"PFOSPR.POZ_F_II_1","PFOSPR.POZ_F_II_1"]
[null,"PFOSPR.POZ_F_II_1","PFOSPR.POZ_F_II_1"]
[null,"PFOSPR.POZ_F_II_1","PFOSPR.POZ_F_II_1"]
[null,"PFOSPR.POZ_F_II_1","PFOSPR.POZ_F_II_1"]
[null,"PFOSPR.POZ_F_II_1","PFOSPR.POZ_F_II_1"]
[null,"PFOSPR.POZ_F_II_1","PFOSPR.POZ_F_II_1"]
[null,"PFOSPR.POZ_F_II_1","PFOSPR.POZ_F_II_1"]
[null,"PFOSPR.POZ_F_II_1","PFOSPR.POZ_F_II_1"]
[null,"PFOSPR.POZ_F_II_1","PFOSPR.POZ_F_II_1"]
[null,"PFOSPR.POZ_F_II_1","PFOSPR.POZ_F_II_1"]
[null,"PFOSPR.POZ_F_II_1","PFOSPR.POZ_F_II_1"]
[null,"PFOSPR.POZ_F_II_1","PFOSPR.POZ_F_II_1"]
[null,"PFOSPR.POZ_F_II_1","PFOSPR.POZ_F_II_1"]
[null,"PFOSPR.POZ_F_II_1","PFOSPR.POZ_F_II_1"]
[null,"PFOSPR.POZ_F_II_1","PFOSPR.POZ_F_II_1"]
[null,"PFOSPR.POZ_F_II_1","PFOSPR.POZ_F_II_1"]
[null,"PFOSPR.POZ_F_II_1","PFOSPR.POZ_F_II_1"]
[null,"PFOSPR.POZ_F_II_1","PFOSPR.POZ_F_II_1"]
[null,"PFOSPR.POZ_F_II_1","PFOSPR.POZ_F_II_1"]
[null,"PFOSPR.POZ_F_II_1","PFOSPR.POZ_F_II_1"]
[null,"PFOSPR.POZ_F_II_1","PFOSPR.POZ_F_II_1"]
[null,"PFOSPR.POZ_F_II_1","PFOSPR.POZ_F_II_1"]
[null,"PFOSPR.POZ_F_II_1","PFOSPR.POZ_F_II_1"]
[null,"PFOSPR.POZ_F_II_1","PFOSPR.POZ_F_II_1"]
[null,"PFOSPR.POZ_F_II_1","PFOSPR.POZ_F_II_1"]
[null,"PFOSPR.POZ_F_II_1","PFOSPR.POZ_F_II_1"]
[null,"PFOSPR.POZ_F_II_1","PFOSPR.POZ_F_II_1"]
[null,"PFOSPR.POZ_F_II_1","PFOSPR.POZ_F_II_1"]
[null,"PFOSPR.POZ_F_II_1","PFOSPR.POZ_F_II_1"]
[null,"PFOSPR.POZ_F_II_1","PFOSPR.POZ_F_II_1"]
["2.","PFOSPR.F2_2","PFOSPR.F2_2.II.2","Środki przekazane na realizację zadań bieżących - dla jednostek zaliczanych do sektora finansów publicznych, z tego do: 34)"]
[null,"PFOSPR.POZ_F_II_2","PFOSPR.POZ_F_II_2"]
[null,"PFOSPR.POZ_F_II_2","PFOSPR.POZ_F_II_2"]
[null,"PFOSPR.POZ_F_II_2","PFOSPR.POZ_F_II_2"]
[null,"PFOSPR.POZ_F_II_2","PFOSPR.POZ_F_II_2"]
[null,"PFOSPR.POZ_F_II_2","PFOSPR.POZ_F_II_2"]
[null,"PFOSPR.POZ_F_II_2","PFOSPR.POZ_F_II_2"]
[null,"PFOSPR.POZ_F_II_2","PFOSPR.POZ_F_II_2"]
[null,"PFOSPR.POZ_F_II_2","PFOSPR.POZ_F_II_2"]
["3.","PFOSPR.F2_3","PFOSPR.F2_3.II.3","Środki europejskie, o których mowa w art. 5 ust. 3 pkt 1, 2, 4 i 5a-5c ustawy o finansach publicznych, z tego do: 34) 35)"]
[null,"PFOSPR.POZ_F_II_3","PFOSPR.POZ_F_II_3"]
[null,"PFOSPR.POZ_F_II_3","PFOSPR.POZ_F_II_3"]
[null,"PFOSPR.POZ_F_II_3","PFOSPR.POZ_F_II_3"]
[null,"PFOSPR.POZ_F_II_3","PFOSPR.POZ_F_II_3"]
[null,"PFOSPR.POZ_F_II_3","PFOSPR.POZ_F_II_3"]
[null,"PFOSPR.POZ_F_II_3","PFOSPR.POZ_F_II_3"]
[null,"PFOSPR.POZ_F_II_3","PFOSPR.POZ_F_II_3"]
[null,"PFOSPR.POZ_F_II_3","PFOSPR.POZ_F_II_3"]
[null,"PFOSPR.POZ_F_II_3","PFOSPR.POZ_F_II_3"]
[null,"PFOSPR.POZ_F_II_3","PFOSPR.POZ_F_II_3"]
[null,"PFOSPR.POZ_F_II_3","PFOSPR.POZ_F_II_3"]
[null,"PFOSPR.POZ_F_II_3","PFOSPR.POZ_F_II_3"]
[null,"PFOSPR.POZ_F_II_3","PFOSPR.POZ_F_II_3"]
[null,"PFOSPR.POZ_F_II_3","PFOSPR.POZ_F_II_3"]
[null,"PFOSPR.POZ_F_II_3","PFOSPR.POZ_F_II_3"]
[null,"PFOSPR.POZ_F_II_3","PFOSPR.POZ_F_II_3"]
[null,"PFOSPR.POZ_F_II_3","PFOSPR.POZ_F_II_3"]
[null,"PFOSPR.POZ_F_II_3","PFOSPR.POZ_F_II_3"]
[null,"PFOSPR.POZ_F_II_3","PFOSPR.POZ_F_II_3"]
["4.","PFOSPR.F2_4","PFOSPR.F2_4.II.4","Środki przekazane do jednostek niezaliczanych do sektora finansów publicznych"]
["III","PFOSPR.F3_1","PFOSPR.F3_1.III","Przekazane środki na finansowanie lub dofinansowanie wydatków majątkowych (III = III.1+III.2+III.3)",{"$f":"SUM(E156,E215,E224)","v":0},0,0,0,0,0,0]
["1.","PFOSPR.F3_1","PFOSPR.F3_1.III.1","Dotacje do jednostek zaliczanych do sektora finansów publicznych, z tego do: 34)"]
[null,"PFOSPR.POZ_F_III_1","PFOSPR.POZ_F_III_1"]
[null,"PFOSPR.POZ_F_III_1","PFOSPR.POZ_F_III_1"]
[null,"PFOSPR.POZ_F_III_1","PFOSPR.POZ_F_III_1"]
[null,"PFOSPR.POZ_F_III_1","PFOSPR.POZ_F_III_1"]
[null,"PFOSPR.POZ_F_III_1","PFOSPR.POZ_F_III_1"]
[null,"PFOSPR.POZ_F_III_1","PFOSPR.POZ_F_III_1"]
[null,"PFOSPR.POZ_F_III_1","PFOSPR.POZ_F_III_1"]
[null,"PFOSPR.POZ_F_III_1","PFOSPR.POZ_F_III_1"]
[null,"PFOSPR.POZ_F_III_1","PFOSPR.POZ_F_III_1"]
[null,"PFOSPR.POZ_F_III_1","PFOSPR.POZ_F_III_1"]
[null,"PFOSPR.POZ_F_III_1","PFOSPR.POZ_F_III_1"]
[null,"PFOSPR.POZ_F_III_1","PFOSPR.POZ_F_III_1"]
[null,"PFOSPR.POZ_F_III_1","PFOSPR.POZ_F_III_1"]
[null,"PFOSPR.POZ_F_III_1","PFOSPR.POZ_F_III_1"]
[null,"PFOSPR.POZ_F_III_1","PFOSPR.POZ_F_III_1"]
[null,"PFOSPR.POZ_F_III_1","PFOSPR.POZ_F_III_1"]
[null,"PFOSPR.POZ_F_III_1","PFOSPR.POZ_F_III_1"]
[null,"PFOSPR.POZ_F_III_1","PFOSPR.POZ_F_III_1"]
[null,"PFOSPR.POZ_F_III_1","PFOSPR.POZ_F_III_1"]
[null,"PFOSPR.POZ_F_III_1","PFOSPR.POZ_F_III_1"]
[null,"PFOSPR.POZ_F_III_1","PFOSPR.POZ_F_III_1"]
[null,"PFOSPR.POZ_F_III_1","PFOSPR.POZ_F_III_1"]
[null,"PFOSPR.POZ_F_III_1","PFOSPR.POZ_F_III_1"]
[null,"PFOSPR.POZ_F_III_1","PFOSPR.POZ_F_III_1"]
[null,"PFOSPR.POZ_F_III_1","PFOSPR.POZ_F_III_1"]
[null,"PFOSPR.POZ_F_III_1","PFOSPR.POZ_F_III_1"]
[null,"PFOSPR.POZ_F_III_1","PFOSPR.POZ_F_III_1"]
[null,"PFOSPR.POZ_F_III_1","PFOSPR.POZ_F_III_1"]
[null,"PFOSPR.POZ_F_III_1","PFOSPR.POZ_F_III_1"]
[null,"PFOSPR.POZ_F_III_1","PFOSPR.POZ_F_III_1"]
[null,"PFOSPR.POZ_F_III_1","PFOSPR.POZ_F_III_1"]
[null,"PFOSPR.POZ_F_III_1","PFOSPR.POZ_F_III_1"]
[null,"PFOSPR.POZ_F_III_1","PFOSPR.POZ_F_III_1"]
[null,"PFOSPR.POZ_F_III_1","PFOSPR.POZ_F_III_1"]
[null,"PFOSPR.POZ_F_III_1","PFOSPR.POZ_F_III_1"]
[null,"PFOSPR.POZ_F_III_1","PFOSPR.POZ_F_III_1"]
[null,"PFOSPR.POZ_F_III_1","PFOSPR.POZ_F_III_1"]
[null,"PFOSPR.POZ_F_III_1","PFOSPR.POZ_F_III_1"]
[null,"PFOSPR.POZ_F_III_1","PFOSPR.POZ_F_III_1"]
[null,"PFOSPR.POZ_F_III_1","PFOSPR.POZ_F_III_1"]
[null,"PFOSPR.POZ_F_III_1","PFOSPR.POZ_F_III_1"]
[null,"PFOSPR.POZ_F_III_1","PFOSPR.POZ_F_III_1"]
[null,"PFOSPR.POZ_F_III_1","PFOSPR.POZ_F_III_1"]
[null,"PFOSPR.POZ_F_III_1","PFOSPR.POZ_F_III_1"]
[null,"PFOSPR.POZ_F_III_1","PFOSPR.POZ_F_III_1"]
[null,"PFOSPR.POZ_F_III_1","PFOSPR.POZ_F_III_1"]
[null,"PFOSPR.POZ_F_III_1","PFOSPR.POZ_F_III_1"]
[null,"PFOSPR.POZ_F_III_1","PFOSPR.POZ_F_III_1"]
[null,"PFOSPR.POZ_F_III_1","PFOSPR.POZ_F_III_1"]
[null,"PFOSPR.POZ_F_III_1","PFOSPR.POZ_F_III_1"]
[null,"PFOSPR.POZ_F_III_1","PFOSPR.POZ_F_III_1"]
[null,"PFOSPR.POZ_F_III_1","PFOSPR.POZ_F_III_1"]
[null,"PFOSPR.POZ_F_III_1","PFOSPR.POZ_F_III_1"]
[null,"PFOSPR.POZ_F_III_1","PFOSPR.POZ_F_III_1"]
[null,"PFOSPR.POZ_F_III_1","PFOSPR.POZ_F_III_1"]
[null,"PFOSPR.POZ_F_III_1","PFOSPR.POZ_F_III_1"]
[null,"PFOSPR.POZ_F_III_1","PFOSPR.POZ_F_III_1"]
[null,"PFOSPR.POZ_F_III_1","PFOSPR.POZ_F_III_1"]
["2.","PFOSPR.F3_2","PFOSPR.F3_2.III.2","Środki europejskie, o których mowa w art. 5 ust. 3 pkt 1, 2, 4 i 5a-5c ustawy o finansach publicznych, z tego do: 34) 35)"]
[null,"PFOSPR.POZ_F_III_2","PFOSPR.POZ_F_III_2"]
[null,"PFOSPR.POZ_F_III_2","PFOSPR.POZ_F_III_2"]
[null,"PFOSPR.POZ_F_III_2","PFOSPR.POZ_F_III_2"]
[null,"PFOSPR.POZ_F_III_2","PFOSPR.POZ_F_III_2"]
[null,"PFOSPR.POZ_F_III_2","PFOSPR.POZ_F_III_2"]
[null,"PFOSPR.POZ_F_III_2","PFOSPR.POZ_F_III_2"]
[null,"PFOSPR.POZ_F_III_2","PFOSPR.POZ_F_III_2"]
[null,"PFOSPR.POZ_F_III_2","PFOSPR.POZ_F_III_2"]
["3.","PFOSPR.F3_3","PFOSPR.F3_3.III.3","Środki przekazane do jednostek niezaliczanych do sektora finansów publicznych"]
[]
[]
[]
["Część F.  Dane statystyczne w układzie kasowym"]
[]
[null,"CHAPTER_CODE","UATTRIBUTE01","Wyszczególnienie","Wstępne wykonanie","Ustawa","Przewidywane ","Projekt","Projekt","Projekt","Projekt"]
[null,null,null,null," / wykonanie*)","budżetowa","wykonanie","planu ","planu ","planu ","planu "]
["Lp.",null,null,null," ……. r.","na ……... r. 2)","w ………. r.","na ……….. r.","na ………... r.","na ……….. r.","na …….. r."]
[null,null,null,null,"(rok n-2)","(rok n-1)","(rok n-1)","(rok n)","(rok n+1)","(rok n+2)","(rok n+3)"]
[null,null,null,null,"w tysiącach złotych"]
[1,null,null,2,3,4,5,6,7,8,9]
["I","PFOSPR.F4_1","PFOSPR.F4_1.I","Otrzymane środki na finansowanie lub dofinansowanie zadań bieżących\n (I = I.1+I.2+I.3)",{"$f":"SUM(E237,E249,E262)","v":0},0,0,0,0,0,0]
["1.","PFOSPR.F4_1","PFOSPR.F4_1.I.1","Dotacje i subwencje od:"]
[null,"PFOSPR.F4_1","PFOSPR.F4_1.I.1.1"," - budżetu państwa"]
[null,"PFOSPR.F4_1","PFOSPR.F4_1.I.1.2"," - jednostek samorządu terytorialnego i ich związków oraz związków metropolitalnych"]
[null,"PFOSPR.F4_1","PFOSPR.F4_1.I.1.3"," - pozostałych jednostek zaliczanych do sektora finansów publicznych 34)"]
[null,"PFOSPR.POZ_F_IV_1","PFOSPR.POZ_F_IV_1"]
[null,"PFOSPR.POZ_F_IV_1","PFOSPR.POZ_F_IV_1"]
[null,"PFOSPR.POZ_F_IV_1","PFOSPR.POZ_F_IV_1"]
[null,"PFOSPR.POZ_F_IV_1","PFOSPR.POZ_F_IV_1"]
[null,"PFOSPR.POZ_F_IV_1","PFOSPR.POZ_F_IV_1"]
[null,"PFOSPR.POZ_F_IV_1","PFOSPR.POZ_F_IV_1"]
[null,"PFOSPR.POZ_F_IV_1","PFOSPR.POZ_F_IV_1"]
[null,"PFOSPR.POZ_F_IV_1","PFOSPR.POZ_F_IV_1"]
["2.","PFOSPR.F4_2","PFOSPR.F4_2.I.2","Środki europejskie, o których mowa w art. 5 ust. 3 pkt 1, 2, 4 i 5a-5c ustawy o finansach publicznych, od:"]
[null,"PFOSPR.F4_2","PFOSPR.F4_2.I.2.1"," - budżetu państwa"]
[null,"PFOSPR.F4_2","PFOSPR.F4_2.I.2.2"," - budżetu środków europejskich"]
[null,"PFOSPR.F4_2","PFOSPR.F4_2.I.2.3"," - jednostek samorządu terytorialnego i ich związków oraz związków metropolitalnych"]
[null,"PFOSPR.F4_2","PFOSPR.F4_2.I.2.4"," - pozostałych jednostek zaliczanych do sektora finansów publicznych 34)"]
[null,"PFOSPR.POZ_F_IV_2","PFOSPR.POZ_F_IV_2"]
[null,"PFOSPR.POZ_F_IV_2","PFOSPR.POZ_F_IV_2"]
[null,"PFOSPR.POZ_F_IV_2","PFOSPR.POZ_F_IV_2"]
[null,"PFOSPR.POZ_F_IV_2","PFOSPR.POZ_F_IV_2"]
[null,"PFOSPR.POZ_F_IV_2","PFOSPR.POZ_F_IV_2"]
[null,"PFOSPR.POZ_F_IV_2","PFOSPR.POZ_F_IV_2"]
[null,"PFOSPR.POZ_F_IV_2","PFOSPR.POZ_F_IV_2"]
[null,"PFOSPR.POZ_F_IV_2","PFOSPR.POZ_F_IV_2"]
["3.","PFOSPR.F4_3","PFOSPR.F4_3.I.3","Środki otrzymane od jednostek niezaliczanych do sektora finansów publicznych"]
["II","PFOSPR.F5_1","PFOSPR.F5_1.II","Przekazane środki na finansowanie lub dofinansowanie zadań bieżących \n(II = II.1+II.2+II.3+II.4)",{"$f":"SUM(E264,E315,E324,E344)","v":0},0,0,0,0,0,0]
["1.","PFOSPR.F5_1","PFOSPR.F5_1.II.1","Dotacje do jednostek zaliczanych do sektora finansów publicznych, z tego do: 34)"]
[null,"PFOSPR.POZ_F_V_1","PFOSPR.POZ_F_V_1"]
[null,"PFOSPR.POZ_F_V_1","PFOSPR.POZ_F_V_1"]
[null,"PFOSPR.POZ_F_V_1","PFOSPR.POZ_F_V_1"]
[null,"PFOSPR.POZ_F_V_1","PFOSPR.POZ_F_V_1"]
[null,"PFOSPR.POZ_F_V_1","PFOSPR.POZ_F_V_1"]
[null,"PFOSPR.POZ_F_V_1","PFOSPR.POZ_F_V_1"]
[null,"PFOSPR.POZ_F_V_1","PFOSPR.POZ_F_V_1"]
[null,"PFOSPR.POZ_F_V_1","PFOSPR.POZ_F_V_1"]
[null,"PFOSPR.POZ_F_V_1","PFOSPR.POZ_F_V_1"]
[null,"PFOSPR.POZ_F_V_1","PFOSPR.POZ_F_V_1"]
[null,"PFOSPR.POZ_F_V_1","PFOSPR.POZ_F_V_1"]
[null,"PFOSPR.POZ_F_V_1","PFOSPR.POZ_F_V_1"]
[null,"PFOSPR.POZ_F_V_1","PFOSPR.POZ_F_V_1"]
[null,"PFOSPR.POZ_F_V_1","PFOSPR.POZ_F_V_1"]
[null,"PFOSPR.POZ_F_V_1","PFOSPR.POZ_F_V_1"]
[null,"PFOSPR.POZ_F_V_1","PFOSPR.POZ_F_V_1"]
[null,"PFOSPR.POZ_F_V_1","PFOSPR.POZ_F_V_1"]
[null,"PFOSPR.POZ_F_V_1","PFOSPR.POZ_F_V_1"]
[null,"PFOSPR.POZ_F_V_1","PFOSPR.POZ_F_V_1"]
[null,"PFOSPR.POZ_F_V_1","PFOSPR.POZ_F_V_1"]
[null,"PFOSPR.POZ_F_V_1","PFOSPR.POZ_F_V_1"]
[null,"PFOSPR.POZ_F_V_1","PFOSPR.POZ_F_V_1"]
[null,"PFOSPR.POZ_F_V_1","PFOSPR.POZ_F_V_1"]
[null,"PFOSPR.POZ_F_V_1","PFOSPR.POZ_F_V_1"]
[null,"PFOSPR.POZ_F_V_1","PFOSPR.POZ_F_V_1"]
[null,"PFOSPR.POZ_F_V_1","PFOSPR.POZ_F_V_1"]
[null,"PFOSPR.POZ_F_V_1","PFOSPR.POZ_F_V_1"]
[null,"PFOSPR.POZ_F_V_1","PFOSPR.POZ_F_V_1"]
[null,"PFOSPR.POZ_F_V_1","PFOSPR.POZ_F_V_1"]
[null,"PFOSPR.POZ_F_V_1","PFOSPR.POZ_F_V_1"]
[null,"PFOSPR.POZ_F_V_1","PFOSPR.POZ_F_V_1"]
[null,"PFOSPR.POZ_F_V_1","PFOSPR.POZ_F_V_1"]
[null,"PFOSPR.POZ_F_V_1","PFOSPR.POZ_F_V_1"]
[null,"PFOSPR.POZ_F_V_1","PFOSPR.POZ_F_V_1"]
[null,"PFOSPR.POZ_F_V_1","PFOSPR.POZ_F_V_1"]
[null,"PFOSPR.POZ_F_V_1","PFOSPR.POZ_F_V_1"]
[null,"PFOSPR.POZ_F_V_1","PFOSPR.POZ_F_V_1"]
[null,"PFOSPR.POZ_F_V_1","PFOSPR.POZ_F_V_1"]
[null,"PFOSPR.POZ_F_V_1","PFOSPR.POZ_F_V_1"]
[null,"PFOSPR.POZ_F_V_1","PFOSPR.POZ_F_V_1"]
[null,"PFOSPR.POZ_F_V_1","PFOSPR.POZ_F_V_1"]
[null,"PFOSPR.POZ_F_V_1","PFOSPR.POZ_F_V_1"]
[null,"PFOSPR.POZ_F_V_1","PFOSPR.POZ_F_V_1"]
[null,"PFOSPR.POZ_F_V_1","PFOSPR.POZ_F_V_1"]
[null,"PFOSPR.POZ_F_V_1","PFOSPR.POZ_F_V_1"]
[null,"PFOSPR.POZ_F_V_1","PFOSPR.POZ_F_V_1"]
[null,"PFOSPR.POZ_F_V_1","PFOSPR.POZ_F_V_1"]
[null,"PFOSPR.POZ_F_V_1","PFOSPR.POZ_F_V_1"]
[null,"PFOSPR.POZ_F_V_1","PFOSPR.POZ_F_V_1"]
[null,"PFOSPR.POZ_F_V_1","PFOSPR.POZ_F_V_1"]
["2.","PFOSPR.F5_2","PFOSPR.F5_2.II.2","Środki przekazane na realizację zadań bieżących - dla jednostek zaliczanych do sektora finansów publicznych, z tego do: 34)"]
[null,"PFOSPR.POZ_F_V_2","PFOSPR.POZ_F_V_2"]
[null,"PFOSPR.POZ_F_V_2","PFOSPR.POZ_F_V_2"]
[null,"PFOSPR.POZ_F_V_2","PFOSPR.POZ_F_V_2"]
[null,"PFOSPR.POZ_F_V_2","PFOSPR.POZ_F_V_2"]
[null,"PFOSPR.POZ_F_V_2","PFOSPR.POZ_F_V_2"]
[null,"PFOSPR.POZ_F_V_2","PFOSPR.POZ_F_V_2"]
[null,"PFOSPR.POZ_F_V_2","PFOSPR.POZ_F_V_2"]
[null,"PFOSPR.POZ_F_V_2","PFOSPR.POZ_F_V_2"]
["3.","PFOSPR.F5_3","PFOSPR.F5_3.II.3","Środki europejskie, o których mowa w art. 5 ust. 3 pkt 1, 2, 4 i 5a-5c ustawy o finansach publicznych, z tego do: 34) 35)"]
[null,"PFOSPR.POZ_F_V_3","PFOSPR.POZ_F_V_3"]
[null,"PFOSPR.POZ_F_V_3","PFOSPR.POZ_F_V_3"]
[null,"PFOSPR.POZ_F_V_3","PFOSPR.POZ_F_V_3"]
[null,"PFOSPR.POZ_F_V_3","PFOSPR.POZ_F_V_3"]
[null,"PFOSPR.POZ_F_V_3","PFOSPR.POZ_F_V_3"]
[null,"PFOSPR.POZ_F_V_3","PFOSPR.POZ_F_V_3"]
[null,"PFOSPR.POZ_F_V_3","PFOSPR.POZ_F_V_3"]
[null,"PFOSPR.POZ_F_V_3","PFOSPR.POZ_F_V_3"]
[null,"PFOSPR.POZ_F_V_3","PFOSPR.POZ_F_V_3"]
[null,"PFOSPR.POZ_F_V_3","PFOSPR.POZ_F_V_3"]
[null,"PFOSPR.POZ_F_V_3","PFOSPR.POZ_F_V_3"]
[null,"PFOSPR.POZ_F_V_3","PFOSPR.POZ_F_V_3"]
[null,"PFOSPR.POZ_F_V_3","PFOSPR.POZ_F_V_3"]
[null,"PFOSPR.POZ_F_V_3","PFOSPR.POZ_F_V_3"]
[null,"PFOSPR.POZ_F_V_3","PFOSPR.POZ_F_V_3"]
[null,"PFOSPR.POZ_F_V_3","PFOSPR.POZ_F_V_3"]
[null,"PFOSPR.POZ_F_V_3","PFOSPR.POZ_F_V_3"]
[null,"PFOSPR.POZ_F_V_3","PFOSPR.POZ_F_V_3"]
[null,"PFOSPR.POZ_F_V_3","PFOSPR.POZ_F_V_3"]
["4.","PFOSPR.F5_4","PFOSPR.F5_4.II.4","Środki przekazane do jednostek niezaliczanych do sektora finansów publicznych"]
["III","PFOSPR.F6_1","PFOSPR.F6_1.III","Przekazane środki na finansowanie lub dofinansowanie wydatków majątkowych (III = III.1+III.2+III.3)",{"$f":"SUM(E346,E405,E414)","v":0},0,0,0,0,0,0]
["1.","PFOSPR.F6_1","PFOSPR.F6_1.III.1","Dotacje do jednostek zaliczanych do sektora finansów publicznych, z tego do: 34)"]
[null,"PFOSPR.POZ_F_VI_1","PFOSPR.POZ_F_VI_1"]
[null,"PFOSPR.POZ_F_VI_1","PFOSPR.POZ_F_VI_1"]
[null,"PFOSPR.POZ_F_VI_1","PFOSPR.POZ_F_VI_1"]
[null,"PFOSPR.POZ_F_VI_1","PFOSPR.POZ_F_VI_1"]
[null,"PFOSPR.POZ_F_VI_1","PFOSPR.POZ_F_VI_1"]
[null,"PFOSPR.POZ_F_VI_1","PFOSPR.POZ_F_VI_1"]
[null,"PFOSPR.POZ_F_VI_1","PFOSPR.POZ_F_VI_1"]
[null,"PFOSPR.POZ_F_VI_1","PFOSPR.POZ_F_VI_1"]
[null,"PFOSPR.POZ_F_VI_1","PFOSPR.POZ_F_VI_1"]
[null,"PFOSPR.POZ_F_VI_1","PFOSPR.POZ_F_VI_1"]
[null,"PFOSPR.POZ_F_VI_1","PFOSPR.POZ_F_VI_1"]
[null,"PFOSPR.POZ_F_VI_1","PFOSPR.POZ_F_VI_1"]
[null,"PFOSPR.POZ_F_VI_1","PFOSPR.POZ_F_VI_1"]
[null,"PFOSPR.POZ_F_VI_1","PFOSPR.POZ_F_VI_1"]
[null,"PFOSPR.POZ_F_VI_1","PFOSPR.POZ_F_VI_1"]
[null,"PFOSPR.POZ_F_VI_1","PFOSPR.POZ_F_VI_1"]
[null,"PFOSPR.POZ_F_VI_1","PFOSPR.POZ_F_VI_1"]
[null,"PFOSPR.POZ_F_VI_1","PFOSPR.POZ_F_VI_1"]
[null,"PFOSPR.POZ_F_VI_1","PFOSPR.POZ_F_VI_1"]
[null,"PFOSPR.POZ_F_VI_1","PFOSPR.POZ_F_VI_1"]
[null,"PFOSPR.POZ_F_VI_1","PFOSPR.POZ_F_VI_1"]
[null,"PFOSPR.POZ_F_VI_1","PFOSPR.POZ_F_VI_1"]
[null,"PFOSPR.POZ_F_VI_1","PFOSPR.POZ_F_VI_1"]
[null,"PFOSPR.POZ_F_VI_1","PFOSPR.POZ_F_VI_1"]
[null,"PFOSPR.POZ_F_VI_1","PFOSPR.POZ_F_VI_1"]
[null,"PFOSPR.POZ_F_VI_1","PFOSPR.POZ_F_VI_1"]
[null,"PFOSPR.POZ_F_VI_1","PFOSPR.POZ_F_VI_1"]
[null,"PFOSPR.POZ_F_VI_1","PFOSPR.POZ_F_VI_1"]
[null,"PFOSPR.POZ_F_VI_1","PFOSPR.POZ_F_VI_1"]
[null,"PFOSPR.POZ_F_VI_1","PFOSPR.POZ_F_VI_1"]
[null,"PFOSPR.POZ_F_VI_1","PFOSPR.POZ_F_VI_1"]
[null,"PFOSPR.POZ_F_VI_1","PFOSPR.POZ_F_VI_1"]
[null,"PFOSPR.POZ_F_VI_1","PFOSPR.POZ_F_VI_1"]
[null,"PFOSPR.POZ_F_VI_1","PFOSPR.POZ_F_VI_1"]
[null,"PFOSPR.POZ_F_VI_1","PFOSPR.POZ_F_VI_1"]
[null,"PFOSPR.POZ_F_VI_1","PFOSPR.POZ_F_VI_1"]
[null,"PFOSPR.POZ_F_VI_1","PFOSPR.POZ_F_VI_1"]
[null,"PFOSPR.POZ_F_VI_1","PFOSPR.POZ_F_VI_1"]
[null,"PFOSPR.POZ_F_VI_1","PFOSPR.POZ_F_VI_1"]
[null,"PFOSPR.POZ_F_VI_1","PFOSPR.POZ_F_VI_1"]
[null,"PFOSPR.POZ_F_VI_1","PFOSPR.POZ_F_VI_1"]
[null,"PFOSPR.POZ_F_VI_1","PFOSPR.POZ_F_VI_1"]
[null,"PFOSPR.POZ_F_VI_1","PFOSPR.POZ_F_VI_1"]
[null,"PFOSPR.POZ_F_VI_1","PFOSPR.POZ_F_VI_1"]
[null,"PFOSPR.POZ_F_VI_1","PFOSPR.POZ_F_VI_1"]
[null,"PFOSPR.POZ_F_VI_1","PFOSPR.POZ_F_VI_1"]
[null,"PFOSPR.POZ_F_VI_1","PFOSPR.POZ_F_VI_1"]
[null,"PFOSPR.POZ_F_VI_1","PFOSPR.POZ_F_VI_1"]
[null,"PFOSPR.POZ_F_VI_1","PFOSPR.POZ_F_VI_1"]
[null,"PFOSPR.POZ_F_VI_1","PFOSPR.POZ_F_VI_1"]
[null,"PFOSPR.POZ_F_VI_1","PFOSPR.POZ_F_VI_1"]
[null,"PFOSPR.POZ_F_VI_1","PFOSPR.POZ_F_VI_1"]
[null,"PFOSPR.POZ_F_VI_1","PFOSPR.POZ_F_VI_1"]
[null,"PFOSPR.POZ_F_VI_1","PFOSPR.POZ_F_VI_1"]
[null,"PFOSPR.POZ_F_VI_1","PFOSPR.POZ_F_VI_1"]
[null,"PFOSPR.POZ_F_VI_1","PFOSPR.POZ_F_VI_1"]
[null,"PFOSPR.POZ_F_VI_1","PFOSPR.POZ_F_VI_1"]
[null,"PFOSPR.POZ_F_VI_1","PFOSPR.POZ_F_VI_1"]
["2.","PFOSPR.F6_2","PFOSPR.F6_2.III.2","Środki europejskie, o których mowa w art. 5 ust. 3 pkt 1, 2, 4 i 5a-5c ustawy o finansach publicznych, z tego do: 34) 35)"]
[null,"PFOSPR.POZ_F_VI_2","PFOSPR.POZ_F_VI_2"]
[null,"PFOSPR.POZ_F_VI_2","PFOSPR.POZ_F_VI_2"]
[null,"PFOSPR.POZ_F_VI_2","PFOSPR.POZ_F_VI_2"]
[null,"PFOSPR.POZ_F_VI_2","PFOSPR.POZ_F_VI_2"]
[null,"PFOSPR.POZ_F_VI_2","PFOSPR.POZ_F_VI_2"]
[null,"PFOSPR.POZ_F_VI_2","PFOSPR.POZ_F_VI_2"]
[null,"PFOSPR.POZ_F_VI_2","PFOSPR.POZ_F_VI_2"]
[null,"PFOSPR.POZ_F_VI_2","PFOSPR.POZ_F_VI_2"]
["3.","PFOSPR.F6_3","PFOSPR.F6_3.III.3","Środki przekazane do jednostek niezaliczanych do sektora finansów publicznych"]
[]
[null,null,null,"34) Należy wskazać rodzaj jednostki  w szczegółowości nie mniejszej niż w art. 9 ustawy o finansach publicznych, a w przypadku transferu od/do państwowych funduszy celowych, osób prawnych, o których mowa w art. 9 pkt 5 i 14 ustawy o finansach publicznych, należy wskazać nazwę jednostki. W przypadku jednostek, o których mowa w art. 9 pkt 10 i 13 ustawy należy wskazać odpowiednio: państwowe spzoz, samorządowe spzoz, państwowe instytucje kultury, samorządowe instytucje kultury."]
[null,null,null,"35) Pozycja nie dotyczy ARiMR i KOWR. "]

{"sheet":"PF-OSPR G H","index":4,"n_rows":60,"n_cols":9,"rows_kept":60,"cut":false,"hidden":false,"merged":[[42,0,42,8],[43,3,47,3],[47,5,47,8],[4,3,5,3],[4,0,5,0],[5,4,5,5],[4,1,5,1],[4,2,5,2],[43,1,47,1],[43,2,47,2]]}
[]
["Część G.  Wydatki budżetu państwa, które w roku ... nie wygasły z upływem roku budżetowego *)"]
[]
[]
["Lp.","CHAPTER_CODE","UATTRIBUTE01","Wyszczególnienie","Plan","Wykonanie"]
[null,null,null,null,"w tys.zł"]
[1,null,null,2,3,4]
["I","PFOSPR.G1_1","PFOSPR.G1_1.I","DOTACJE na podstawie:",{"$f":"SUM(E9:E21)","v":0},{"$f":"SUM(F9:F21)","v":0}]
["1","PFOSPR.POZ_G_I_1","PFOSPR.POZ_G_I_1"]
[2,"PFOSPR.POZ_G_I_1","PFOSPR.POZ_G_I_1"]
[3,"PFOSPR.POZ_G_I_1","PFOSPR.POZ_G_I_1"]
[4,"PFOSPR.POZ_G_I_1","PFOSPR.POZ_G_I_1"]
[5,"PFOSPR.POZ_G_I_1","PFOSPR.POZ_G_I_1"]
[6,"PFOSPR.POZ_G_I_1","PFOSPR.POZ_G_I_1"]
[7,"PFOSPR.POZ_G_I_1","PFOSPR.POZ_G_I_1"]
[8,"PFOSPR.POZ_G_I_1","PFOSPR.POZ_G_I_1"]
[9,"PFOSPR.POZ_G_I_1","PFOSPR.POZ_G_I_1"]
[10,"PFOSPR.POZ_G_I_1","PFOSPR.POZ_G_I_1"]
[11,"PFOSPR.POZ_G_I_1","PFOSPR.POZ_G_I_1"]
[12,"PFOSPR.POZ_G_I_1","PFOSPR.POZ_G_I_1"]
[13,"PFOSPR.POZ_G_I_1","PFOSPR.POZ_G_I_1"]
["II","PFOSPR.G1_2","PFOSPR.G1_2.II","ZADANIA:",{"$f":"SUM(E23:E37)","v":0},{"$f":"SUM(F23:F37)","v":0}]
["1","PFOSPR.POZ_G_I_2","PFOSPR.POZ_G_I_2"]
["2","PFOSPR.POZ_G_I_2","PFOSPR.POZ_G_I_2"]
["3","PFOSPR.POZ_G_I_2","PFOSPR.POZ_G_I_2"]
["4","PFOSPR.POZ_G_I_2","PFOSPR.POZ_G_I_2"]
["5","PFOSPR.POZ_G_I_2","PFOSPR.POZ_G_I_2"]
["6","PFOSPR.POZ_G_I_2","PFOSPR.POZ_G_I_2"]
["7","PFOSPR.POZ_G_I_2","PFOSPR.POZ_G_I_2"]
["8","PFOSPR.POZ_G_I_2","PFOSPR.POZ_G_I_2"]
["9","PFOSPR.POZ_G_I_2","PFOSPR.POZ_G_I_2"]
["10","PFOSPR.POZ_G_I_2","PFOSPR.POZ_G_I_2"]
["11","PFOSPR.POZ_G_I_2","PFOSPR.POZ_G_I_2"]
["12","PFOSPR.POZ_G_I_2","PFOSPR.POZ_G_I_2"]
["13","PFOSPR.POZ_G_I_2","PFOSPR.POZ_G_I_2"]
["14","PFOSPR.POZ_G_I_2","PFOSPR.POZ_G_I_2"]
["15","PFOSPR.POZ_G_I_2","PFOSPR.POZ_G_I_2"]
[]
[]
[null,null,null,"*) Kwoty zawarte w \"części G Wydatki budżetu państwa, które w roku …. nie wygasły z upływem  roku budżetowego\""]
[null,null,null,"nie zostały ujęte w \"części A Plan finansowy w układzie memoriałowym\" i w \"części B Plan finansowy w układzie kasowym\"."]
[]
["Część H. Fundusz Społecznej Inicjatywy Mieszkaniowej KZN 36)"]
[null,"CHAPTER_CODE","UATTRIBUTE01","Wyszczególnienie","Przewidywane ","Projekt","Projekt","Projekt","Projekt"]
[null,null,null,null,"wykonanie","planu ","planu ","planu ","planu "]
["Lp.",null,null,null,"w ………. r.","na ……….. r.","na ………... r.","na ……….. r.","na …….. r."]
[null,null,null,null,"(rok n-1)","(rok n)","(rok n+1)","(rok n+2)","(rok n+3)"]
[null,null,null,null,null,"w tysiącach złotych"]
[1,null,null,2,3,4,5,6,7]
[1,"PFOSPR.H1_1","PFOSPR.H1_1.1","Stan na początek roku"]
[2,"PFOSPR.H1_1","PFOSPR.H1_1.2","Wpływy (odpis)"]
[3,"PFOSPR.H1_1","PFOSPR.H1_1.3","Wydatki"]
[4,"PFOSPR.H1_1","PFOSPR.H1_1.4","Stan na koniec roku"]
[]
[null,null,null,"36) Wypełnia Krajowy Zasób Nieruchomości."]
[]
[]
[null,null,null,"sporządził ....................................................................."]
[null,null,null,"                         (imię i nazwisko, stanowisko służbowe)"]
[null,null,null,"nr telefonu .........................     adres e-mail ........................................"]

{"sheet":"slowniki","index":5,"n_rows":9,"n_cols":1,"rows_kept":9,"cut":false,"hidden":true,"merged":[]}
["typ Jednostki"]
["Agencje wykonawcze"]
["Instytucje gospodarki budżetowej"]
["Samodzielne publiczne zakłady opieki zdrowotnej, dla których podmiotem tworzącym jest minister, centralny organ administracji rządowej, wojewoda lub uczelnia medyczna"]
["Państwowe instytucje kultury"]
["Narodowy Fundusz Zdrowia"]
["Polska Akademia Nauk"]
["Uczelnie publiczne"]
["Pozostałe osoby prawne"]